Workbook

Sheet 1
A1: CL | B1: Group | C1: Rule | D1: Spec | E1: Voice | F1: Subrules | O1: Comment | Q1: IDs
A2: Rhythm | B2: Rhythm | C2: Beginning is non-standard | F2: 1/8 note | Q2: 230
C3: Misuse of rest | F3: wrong starting rest | G3: rest inside | H3: late entrance | Q3: 138 | R3: 517 | S3: 527
C4: Missing rest | F4: /no starting rest | Q4: 237
C5: Simultaneous entries of voices | F5: /simultaneous | Q5: 530
C6: Same rhythm in adjacent measures | F6: /same | Q6: 247
C7: Identical rhythm in two parts | F7: /same | Q7: 549
C8: Identical rhythm in all parts | F8: /same | O8: For any species except species 1 | Q8: 215
C9: Non-permitted rhythm | F9: 1/2. downbeat | G9: 1/2. upbeat | H9: 1/4 syncope | I9: rhythm stagnation | J9: whole inside | Q9: 233 | R9: 234 | S9: 235 | T9: 236 | U9: 160
C10: Wrong usage of eighth notes | F10: 1st beat | G10: 2nd beat | H10: 3rd beat | I10: 4th beat | J10: isolated | K10: 1/8 syncope | L10: >2 x 1/8 | M10: leap | Q10: 226 | R10: 227 | S10: 228 | T10: 229 | U10: 231 | V10: 232 | W10: 255 | X10: 88
C11: Anapaest | F11: tie forward | G11: inside | O11: 1/2 after 1/4 or 1/8 in measure | Q11: 239 | R11: 240
C12: Wrong note value for this species | F12: /value | O12: Except last note | Q12: 514
C13: Wrong time signature for this species | F13: /measure len | Q13: 525
C14: Wrong positioning of note for this species | F14: /position | Q14: 515
C15: Note lasts for too many measures | F15: >2 | Q15: 41
C16: The length of last note is not full measure | F16: /not full measure | Q16: 267
C17: Wrong suspension rhythm | F17: sus wrong length | G17: prep < sus | H17: prep wrong length | O17: Suspension preparation and suspension | Q17: 244 | R17: 427 | S17: 274
C18: Need more suspensions | F18: each 3 meas. | Q18: 341
C19: Too many notes in one measure | F19: 5 notes after sus. | G19: 5 notes without sus. | H19: >5 notes | Q19: 301 | R19: 245 | S19: 246
B20: Repeats and ties | C20: Note repeat | F20: cantus | G20: inside measure | Q20: 30 | R20: 516
C21: Simultaneous repeats of notes in multiple parts | F21: /multivoice | Q21: 557
C22: Note is repeated: in 10 notes | D22: 10 | F22: 1 | G22: 2 | H22: >2 | O22: Note repeat happens several times | Q22: 93 | R22: 94 | S22: 95
C23: Note is repeated: in 10 notes | D23: 2 | F23: 1 | G23: 2 | H23: >2 | O23: Note repeat happens several times | Q23: 93 | R23: 94 | S23: 95
C24: Frequent interruption of syncopation: within 10 notes | D24: 4 | F24: 1 | G24: 2 | H24: >2 | O24: Except interruption of syncopation between penultimate and last measure | Q24: 188 | R24: 189 | S24: 190
A25: Melody | B25: Border | C25: Leading tone is unresolved | F25: need up | G25: need stepwise | Q25: 197 | R25: 198
B26: Compensated leap | C26: Uncompensated leap: compensation deviation to 2nd | E26: E | F26: 3rd | G26: 4th | H26: 5th | I26: >5th | J26: late >3 | K26: >5th long | O26: Compensation can be deviated one 2nd interval above last leap note | Q26: 42 | R26: 43 | S26: 44 | T26: 45 | U26: 191 | V26: 386
C27: Uncompensated leap: compensation deviation to 3rd | D27: 1240 | E27: E | F27: 3rd | G27: 4th | H27: 5th | I27: >5th | J27: late >3 | O27: Compensation can be deviated one 3rd interval above last leap note | Q27: 120 | R27: 121 | S27: 122 | T27: 123 | U27: 192
C28: Uncompensated leap: compensation deviation to 3rd | D28: 35 | E28: E | F28: 3rd | G28: 4th | H28: 5th | I28: >5th | J28: late >3 | O28: Compensation can be deviated one 3rd interval above last leap note | Q28: 120 | R28: 121 | S28: 122 | T28: 123 | U28: 192
C29: Compensation after 3rd | E29: E | F29: 3rd | G29: 4th | H29: 5th | I29: >5th | O29: Compensation has a gap of one 3rd below last leap note | Q29: 53 | R29: 54 | S29: 55 | T29: 56
C30: Compensated to 3rd prepared | E30: E | F30: - | G30: 4th | H30: 5th | I30: >5th | O30: Prepared within 5 notes | Q30: 100 | R30: 101 | S30: 102 | T30: 103
C31: Compensated to 3rd | E31: E | F31: - | G31: 4th | H31: 5th | I31: >5th | Q31: 104 | R31: 105 | S31: 106 | T31: 107
C32: 8ve compensated to 4th | E32: E | F32: 8ve | Q32: 304
C33: C5P last 4 measures, 8 notes | E33: E | F33: 3rd | G33: 4th | H33: 5th | I33: >5th | O33: Compensated to 5th, precompensated within 6 notes | Q33: 144 | R33: 145 | S33: 146 | T33: 147
B34: Uncompensated leap | C34: Uncompensated leap: precompensated | E34: E | F34: 3rd | G34: 4th | H34: 5th | I34: >5th | Q34: 112 | R34: 113 | S34: 114 | T34: 115
C35: Precompensated last 2 leaps | E35: E | F35: 3rd | G35: 4th | H35: 5th | I35: >5th | O35: Leap within last XX notes in cantus/counterpoint | Q35: 204 | R35: 205 | S35: 206 | T35: 207
C36: Uncompensated child leap | E36: E | F36: 3rd | G36: 4th | H36: 5th | I36: >5th | O36: After longer leap or before longer/same/one-note-smaller leap. | Q36: 116 | R36: 117 | S36: 118 | T36: 119
C37: Uncompensated leap | E37: E | F37: 3rd | G37: 4th | H37: 5th | I37: >5th | J37: start 3rd | O37: If no other uncompensated rules worked. | Q37: 124 | R37: 125 | S37: 126 | T37: 127 | U37: 1
B38: Change of melodic direction around leap | C38: No change of direction after the leap: close + neigh | D38: 35 | E38: E | F38: 3rd | G38: 4th | H38: 5th | I38: >5th | O38: There is immediate melody direction change before leap. After leap there is neighbor tone, then ending leap note repeats and then there is movement inside leap. | Q38: 510 | R38: 511 | S38: 512 | T38: 513
C39: No change of direction after the leap: close + 1skip | E39: E | F39: 3rd | G39: 4th | H39: 5th | I39: >5th | O39: There is immediate melody direction change before leap, but after leap melody direction changes only after one note, which goes in the same direction as leap | Q39: 128 | R39: 129 | S39: 130 | T39: 131
C40: No change of direction after the leap: close + 2skip | E40: E | F40: 3rd | G40: 4th | H40: 5th | I40: >5th | O40: There is immediate melody direction change before leap, but after leap melody direction changes only after two notes, which go in the same direction as leap | Q40: 140 | R40: 141 | S40: 142 | T40: 143
C41: No change of direction after the leap: close + >2skip | E41: E | F41: 3rd | G41: 4th | H41: 5th | I41: >5th | O41: There is immediate melody direction change before leap, but after leap melody direction changes after more than two notes, which go in the same direction as leap | Q41: 108 | R41: 109 | S41: 110 | T41: 111
C42: No change of direction before the leap: neigh + close | D42: 35 | E42: E | F42: 3rd | G42: 4th | H42: 5th | I42: >5th | O42: There is immediate melody direction change after leap. Before leap there is neighbor tone, then ending leap note repeats and then there is movement inside leap. | Q42: 506 | R42: 507 | S42: 508 | T42: 509
C43: No change of direction before the leap: 1skip + close | E43: E | F43: 3rd | G43: 4th | H43: 5th | I43: >5th | O43: There is immediate melody direction change after leap, but before leap melody direction changes after one note, which goes in the same direction as leap | Q43: 59 | R43: 60 | S43: 61 | T43: 62
C44: No change of direction before the leap: >1skip + close | E44: E | F44: 3rd | G44: 4th | H44: 5th | I44: >5th | O44: There is immediate melody direction change after leap, but before leap melody direction changes after more than one note, which go in the same direction as leap | Q44: 132 | R44: 133 | S44: 134 | T44: 135
C45: No change of direction before and after the leap: 1skip + 1skip | E45: E | F45: 3rd | G45: 4th | H45: 5th | I45: >5th | O45: There is one note going in the same direction before and after leap | Q45: 63 | R45: 64 | S45: 65 | T45: 66
C46: No change of direction before and after the leap: 1skip + >1skip | E46: E | F46: 3rd | G46: 4th | H46: 5th | I46: >5th | O46: There is one note going in the same direction before leap and more than one note going in the same direction after leap | Q46: 391 | R46: 392 | S46: 393 | T46: 394
C47: No change of direction before and after the leap: >1skip + 1skip | E47: E | F47: 3rd | G47: 4th | H47: 5th | I47: >5th | O47: There is more than one note going in the same direction before leap and one note going in the same direction after leap | Q47: 148 | R47: 149 | S47: 150 | T47: 151
C48: No change of direction before and after the leap: >1skip + >1skip | E48: E | F48: 3rd | G48: 4th | H48: 5th | I48: >5th | O48: There is more than one note going in the same direction before leap and more than one note going in the same direction after leap | Q48: 398 | R48: 399 | S48: 400 | T48: 401
C49: No change of direction before and after the leap: neigh + neigh | D49: 35 | E49: E | F49: 3rd | G49: 4th | H49: 5th | I49: >5th | O49: Before and after leap there is neighbor tone, then ending leap note repeats and then there is movement inside leap. | Q49: 414 | R49: 415 | S49: 416 | T49: 417
C50: No change of direction before the leap between measures: 1skip + close | E50: E | F50: 3rd | G50: 4th | H50: 5th | I50: >5th | O50: There is immediate melody direction change after leap, but before leap melody direction changes after one note, which goes in the same direction as leap | Q50: 476 | R50: 477 | S50: 478 | T50: 479
C51: No change of direction before the leap between measures: >1skip + close | E51: E | F51: 3rd | G51: 4th | H51: 5th | I51: >5th | O51: There is immediate melody direction change after leap, but before leap melody direction changes after more than one note, which go in the same direction as leap | Q51: 25 | R51: 26 | S51: 27 | T51: 28
C52: No change of direction before the leap between measures: 1skip + 1skip | E52: E | F52: 3rd | G52: 4th | H52: 5th | I52: >5th | O52: Turns around leap on measure border. There is one note going in the same direction before and after leap | Q52: 460 | R52: 461 | S52: 462 | T52: 463
C53: No change of direction before the leap between measures: 1skip + >1skip | E53: E | F53: 3rd | G53: 4th | H53: 5th | I53: >5th | O53: Turns around leap on measure border. There is one note going in the same direction before leap and more than one note going in the same direction after leap | Q53: 464 | R53: 465 | S53: 466 | T53: 467
C54: No change of direction before the leap between measures: >1skip + 1skip | E54: E | F54: 3rd | G54: 4th | H54: 5th | I54: >5th | O54: Turns around leap on measure border. There is more than one note going in the same direction before leap and one note going in the same direction after leap | Q54: 468 | R54: 469 | S54: 470 | T54: 471
C55: No change of direction before the leap between measures: >1skip + >1skip | E55: E | F55: 3rd | G55: 4th | H55: 5th | I55: >5th | O55: Turns around leap on measure border. There is more than one note going in the same direction before leap and more than one note going in the same direction after leap | Q55: 472 | R55: 473 | S55: 474 | T55: 475
C56: Leap back | E56: E | F56: <=6th | G56: >6th | H56: overflow | Q56: 8 | R56: 22 | S56: 58
B57: Leaps | C57: Non-permitted melodic interval: ascending | F57: :m6 | G57: :maj6 | H57: :m7 | I57: :maj7 | J57: :8ve | K57: :greater than 8ve | Q57: 175 | R57: 176 | S57: 177 | T57: 178 | U57: 179 | V57: 180
C58: Non-permitted melodic interval: descending | F58: :m6 | G58: :maj6 | H58: :m7 | I58: :maj7 | J58: :8ve | K58: :greater than 8ve | Q58: 181 | R58: 182 | S58: 183 | T58: 184 | U58: 185 | V58: 186
C59: Abuse of disjunct motion: within 9 notes | D59: 0 | F59: >7 leaps | G59: >30 leaped | H59: >8 leaps | I59: >36 leaped | Q59: 493 | R59: 494 | S59: 495 | T59: 496
C60: Abuse of disjunct motion: within 9 notes | D60: 1 | F60: >6 leaps | G60: >30 leaped | H60: >8 leaps | I60: >36 leaped | Q60: 493 | R60: 494 | S60: 495 | T60: 496
C61: Abuse of disjunct motion: within 9 notes | D61: 2 | F61: >6 leaps | G61: >22 leaped | H61: >7 leaps | I61: >30 leaped | Q61: 493 | R61: 494 | S61: 495 | T61: 496
C62: Abuse of disjunct motion: within 9 notes | D62: 3 | F62: >6 leaps | G62: >22 leaped | H62: >7 leaps | I62: >30 leaped | Q62: 493 | R62: 494 | S62: 495 | T62: 496
C63: Abuse of disjunct motion: within 9 notes | D63: 4 | F63: >7 leaps | G63: >30 leaped | H63: >8 leaps | I63: >36 leaped | Q63: 493 | R63: 494 | S63: 495 | T63: 496
C64: Abuse of disjunct motion: within 9 notes | D64: 5 | F64: >7 leaps | G64: >30 leaped | H64: >8 leaps | I64: >36 leaped | Q64: 493 | R64: 494 | S64: 495 | T64: 496
C65: Abuse of disjunct motion: within 14 notes | D65: 0 | F65: >9 leaps | G65: >40 leaped | H65: >10 leaps | I65: >46 leaped | Q65: 497 | R65: 498 | S65: 499 | T65: 500
C66: Abuse of disjunct motion: within 14 notes | D66: 1 | F66: >8 leaps | G66: >40 leaped | H66: >10 leaps | I66: >46 leaped | Q66: 497 | R66: 498 | S66: 499 | T66: 500
C67: Abuse of disjunct motion: within 14 notes | D67: 2 | F67: >8 leaps | G67: >32 leaped | H67: >9 leaps | I67: >34 leaped | Q67: 497 | R67: 498 | S67: 499 | T67: 500
C68: Abuse of disjunct motion: within 14 notes | D68: 3 | F68: >8 leaps | G68: >32 leaped | H68: >9 leaps | I68: >34 leaped | Q68: 497 | R68: 498 | S68: 499 | T68: 500
C69: Abuse of disjunct motion: within 14 notes | D69: 4 | F69: >9 leaps | G69: >40 leaped | H69: >10 leaps | I69: >46 leaped | Q69: 497 | R69: 498 | S69: 499 | T69: 500
C70: Abuse of disjunct motion: within 14 notes | D70: 5 | F70: >9 leaps | G70: >40 leaped | H70: >10 leaps | I70: >46 leaped | Q70: 497 | R70: 498 | S70: 499 | T70: 500
C71: Consecutive leaps | D71: 120 | F71: 3 | G71: more than 3 | O71: 0x3rd ignored | Q71: 501 | R71: 502
C72: Consecutive leaps | D72: 34 | F72: 3 | G72: more than 3 | O72: 1x3rd ignored | Q72: 501 | R72: 502
C73: Consecutive leaps | D73: 5 | F73: 4 | G73: more than 4 | O73: 1x3rd ignored | Q73: 501 | R73: 502
C74: Consecutive unidirectional leaps | D74: 1230 | F74: Two 3rds | G74: Three 3rds | H74: Two >3rds | Q74: 503 | R74: 504 | S74: 505
C75: Consecutive unidirectional leaps | D75: 45 | F75: Two 3rds | G75: Three 3rds | H75: Two >3rds | Q75: 503 | R75: 504 | S75: 505
B76: Stepwise motion | C76: Abuse of stepwise motion | D76: 0 | E76: E | F76: >7 in any direction | O76: There are more than AA notes going stepwize in the same direction in this cantus firmus | Q76: 302
C77: Abuse of stepwise motion | D77: 14 | E77: E | F77: >10 in any direction | Q77: 302
C78: Abuse of stepwise motion | D78: 2 | E78: E | F78: >14 in any direction | Q78: 302
C79: Abuse of stepwise motion | D79: 35 | E79: E | F79: >14 in any direction | Q79: 302
C80: Abuse of unidirectional stepwise motion | D80: 0 | E80: E | F80: >4 in one direction | Q80: 303
C81: Abuse of unidirectional stepwise motion | D81: 14 | E81: E | F81: >7 in one direction | Q81: 303
C82: Abuse of unidirectional stepwise motion | D82: 2 | E82: E | F82: >7 in one direction | Q82: 303
C83: Abuse of unidirectional stepwise motion | D83: 35 | E83: E | F83: >7 in one direction | Q83: 303
B84: Melodic repeats | C84: Repetition - 2 notes are repeated: immediate | D84: 104 | E84: E | F84: uniform | G84: same rhythm | H84: any rhythm | O84: Two adjacent notes are immediately repeated | Q84: 402 | R84: 403 | S84: 404
C85: Repetition - 2 notes are repeated: immediate | D85: 3 | E85: E | F85: uniform | G85: same rhythm | H85: any rhythm | O85: Two adjacent notes are immediately repeated | Q85: 402 | R85: 403 | S85: 404
C86: Repetition - 2 notes are repeated: immediate | D86: 2 | E86: E | F86: uniform | G86: same rhythm | H86: any rhythm | O86: Two adjacent notes are immediately repeated | Q86: 402 | R86: 403 | S86: 404
C87: Repetition - 2 notes are repeated: immediate IM | D87: 23 | E87: E | F87: uniform | G87: same rhythm | H87: any rhythm | O87: Two adjacent notes are immediately repeated inside one measure | Q87: 411 | R87: 412 | S87: 413
C88: Repetition - 2 notes are repeated: immediate | D88: 5 | E88: E | F88: uniform | G88: same rhythm | H88: any rhythm | O88: Two adjacent notes are immediately repeated | Q88: 402 | R88: 403 | S88: 404
C89: Repetition - 2 notes are repeated: immediate IM | D89: 5 | E89: E | F89: uniform | G89: same rhythm | H89: any rhythm | O89: Two adjacent notes are immediately repeated inside one measure | Q89: 411 | R89: 412 | S89: 413
C90: Repetition - 3 notes are repeated 2 times | E90: E | F90: adjacent | G90: symmetric | O90: Repeat with the same rhythm (last note length is ignored) | Q90: 311 | R90: 405
C91: Repetition - 3 notes are repeated 3 times | E91: E | F91: adjacent | G91: symmetric | O91: Repeat with the same rhythm (last note length is ignored) | Q91: 313 | R91: 407
C92: Repetition - 4 notes are repeated 2 times | E92: E | F92: adjacent | G92: symmetric | O92: Repeat with the same rhythm (last note length is ignored) | Q92: 312 | R92: 406
C93: Repetition - 4 notes are repeated 3 times | E93: E | F93: adjacent | G93: symmetric | O93: Repeat with the same rhythm (last note length is ignored) | Q93: 314 | R93: 408
C94: Melodic climax | E94: E | F94: early 50% | G94: early <5 | H94: early <3 | I94: late 3 | Q94: 193 | R94: 79 | S94: 78 | T94: 21
C95: Melodic climax is repeated | E95: E | F95: in lower part | G95: in upper part | Q95: 305 | R95: 12
C96: Frequent return to the tonic | F96: 3 within 6 | G96: 4 within 12 | O96: More than AA tonic notes within BB adjacent notes | Q96: 70 | R96: 71
C97: Octave leap to the leading tone | F97: /LT 8ve leap | Q97: 348
C98: Frequent return to the same note | E98: E | F98: >3 in 7 notes | G98: >4 in 9 notes | O98: Same note repeats more than AA times within BB adjacent notes | Q98: 10 | R98: 39
C99: Notes stagnation | E99: E | F99: 5 notes <3 pitches | G99: 7 notes <4 pitches | H99: 17 notes <6 pitches | Q99: 344 | R99: 345 | S99: 346
B100: Tritone | C100: Tritone: adjacent | D100: 10 | F100: :resolved | G100: :unresolved | O100: Melodic adjacent tritone | Q100: 2 | R100: 31
C101: Audible tritone: framed | D101: 10 | F101: :resolved | G101: :unresolved | O101: Melodic tritone with one intermediate note, framed by two melody direction changes or leaps | Q101: 371 | R101: 372
C102: Tritone: adjacent | D102: 2345 | F102: :resolved | G102: :unresolved | O102: Melodic adjacent tritone, not accented or framed | Q102: 368 | R102: 369
C103: Tritone: adjacent framed | D103: 2345 | F103: :resolved | G103: :unresolved | O103: Melodic adjacent tritone, framed by two melody direction changes | Q103: 365 | R103: 366
C104: Tritone: adjacent accented | D104: 2345 | F104: :resolved | G104: :unresolved | O104: Melodic adjacent tritone, last note is long or repeated | Q104: 360 | R104: 361
C105: Audible tritone: framed | D105: 2345 | F105: :resolved | G105: :unresolved | O105: Tritone within measure with intermediate notes, framed by two melody direction changes | Q105: 18 | R105: 19
C106: Audible tritone: accented | D106: 2345 | F106: :resolved | G106: :unresolved | O106: Tritone within measure with intermediate notes, last note is long or repeated | Q106: 342 | R106: 343
B107: Range | C107: Skipped notes | F107: 1 | G107: >1 | H107: >1 joined | O107: Skipped notes that do not appear within this voice | Q107: 67 | R107: 68 | S107: 69
C108: Out of vocal range | F108: /out of range | Q108: 522
C109: Wrong order of vocal ranges | F109: /above higher | Q109: 523
C110: Imbalance between vocal ranges | F110: >7 quarters | G110: >12 quarters | O110: One voice is in its highest third of range, while the other voice is in its lowest third range for AA quarters | Q110: 524 | R110: 526
C111: Voices are too far apart | E111: EN | F111: > 12 semitones | G111: > 16 semitones | Q111: 293 | R111: 294
C112: Voices are too far apart | E112: B | F112: > 12 semitones | G112: > 16 semitones | Q112: 293 | R112: 294
C113: Stagnation | D113: 0 | E113: E | F113: 5 notes <m3 | G113: 7 notes <4th | H113: 11 notes <5th | I113: 15 notes <m6 | Q113: 434 | R113: 435 | S113: 436 | T113: 437
C114: Stagnation | D114: 1 | E114: E | F114: 5 notes <m3 | G114: 7 notes <4th | H114: 11 notes <5th | I114: 15 notes <m6 | Q114: 434 | R114: 435 | S114: 436 | T114: 437
C115: Stagnation | D115: 2 | E115: E | F115: 5 notes <m3 | G115: 8 notes <4th | H115: 11 notes <5th | I115: 17 notes <m6 | Q115: 434 | R115: 435 | S115: 436 | T115: 437
C116: Stagnation | D116: 3 | E116: E | F116: 5 notes <m3 | G116: 9 notes <4th | H116: 12 notes <5th | I116: 19 notes <m6 | Q116: 434 | R116: 435 | S116: 436 | T116: 437
C117: Stagnation | D117: 4 | E117: E | F117: 5 notes <m3 | G117: 7 notes <4th | H117: 11 notes <5th | I117: 15 notes <m6 | Q117: 434 | R117: 435 | S117: 436 | T117: 437
C118: Stagnation | D118: 5 | E118: E | F118: 5 notes <m3 | G118: 9 notes <4th | H118: 14 notes <5th | I118: 19 notes <m6 | Q118: 434 | R118: 435 | S118: 436 | T118: 437
C119: No melody development | E119: E | F119: 12 notes <12 | G119: 15 notes <15 | Q119: 15 | R119: 16
B120: Melodic minor | C120: bVII note | F120: :before the tonic | G120: 10 after VII# | Q120: 74 | R120: 200
C121: bVII note near VI# note | F121: 4 notes before | G121: 4 notes after | H121: immediate | Q121: 349 | R121: 350 | S121: 203
C122: VI# note without close VII# note | F122: within 2 notes | O122: There is no VII# note before or after VI# chord tone in close proximity | Q122: 199
C123: VI# should be surrounded by ascending stepwise motion | D123: 10 | F123: /VI# | O123: Chord tone VI# is not surrounded by stepwise diatonic ascending movement | Q123: 201
C124: VIIb should be surrounded by descending stepwise motion | D124: 10 | F124: /VIIb | O124: Chord tone VII natural is not surrounded by stepwise diatonic descending movement | Q124: 202
C125: VI# should be surrounded by ascending stepwise motion | D125: 2345 | F125: /VI# | O125: Chord tone VI# is not surrounded by stepwise diatonic ascending movement | Q125: 201
C126: VIIb should be surrounded by descending stepwise motion | D126: 2345 | F126: /VIIb | O126: Chord tone VII natural is not surrounded by stepwise diatonic descending movement | Q126: 202
C127: Note is not part of the mode | F127: /wrong alteration | Q127: 521
C128: Chromaticism: close | F128: VI<->VI# | G128: VII<->VII# | O128: These two notes are tightly close | Q128: 152 | R128: 153
C129: Chromaticism: far | F129: VI<->VI# | G129: VII<->VII# | O129: These two notes are one note apart and are in neighboring harmonies | Q129: 158 | R129: 159
C130: Dim or aug melodic interval | F130: VI<->VII# | G130: VI#<->III | H130: VII#-III | I130: III-VII# | J130: III-VII#-I down | Q130: 154 | R130: 155 | S130: 156 | T130: 157 | U130: 432
A131: Harmony | B131: Melodic minor | C131: False chromatic relation: in outer voices | F131: VI<->VI# | G131: VII<->VII# | O131: These two notes are harmonic tones in neighboring harmonies, but are in different voices | Q131: 377 | R131: 378
C132: False chromatic relation: in non-outer voices | F132: VI<->VI# | G132: VII<->VII# | O132: These two notes are harmonic tones in neighboring harmonies, but are in different voices | Q132: 164 | R132: 165
B133: Harmony | C133: Repeating functions in a row | F133: >4 T | G133: >4 D | H133: >4 S | O133: More than AA consecutive harmonies all have this letter | Q133: 17 | R133: 428 | S133: 429
C134: Missing functions in a row | F134: >5 without T | G134: >5 without D | H134: >6 without S | O134: More than AA consecutive harmonies do not have this letter | Q134: 20 | R134: 430 | S134: 431
C135: Too many tonic chords | F135: >2 within 9 mea. | Q135: 310
C136: Convoluted harmony | F136: /convoluted | O136: Cannot detect harmony | Q136: 555
C137: Ambiguous harmony | F137: /ambiguous | O137: Chord should have at least one chord tone starting on the first beat of this chord | Q137: 558
C138: Incomplete harmony | F138: any - no 3rd | G138: penultimate | Q138: 559 | R138: 172
C139: Two consecutive incomplete harmonies | E139: >2 | F139: /2 | Q139: 251
C140: Augmented chord | F140: DTIII | Q140: 375
C141: Six-four chord | F141: :suggestive | G141: :audible | H141: real | Q141: 196 | R141: 383 | S141: 433
C142: 7th chord | E142: <3 | F142: /7th | Q142: 194
C143: 7th chord | E143: >2 | F143: /7th | Q143: 194
C144: Cadential progression | F144: V-I | Q144: 48
C145: Modulating progression | F145: IV-VII (m) | G145: VII-III (m) | H145: II-III (m) | Q145: 308 | R145: 309 | S145: 139
C146: Harmonic progression | F146: non-ideal | G146: bad | H146: 2 x bad | I146: 3 x bad | Q146: 77 | R146: 57 | S146: 92 | T146: 23
C147: Repeated harmony | F147: in changed inversion | G147: :in same inversion | H147: :three times | O147: Harmonic stagnation | Q147: 418 | R147: 99 | S147: 321
B148: Perfect consonance | C148: Doubling of a tritone note | F148: /doubling | Q148: 222
C149: Doubling of leading-tone | E149: <5 | F149: /LT doubling | Q149: 324
C150: Doubling of leading-tone | E150: >4EB | F150: /LT doubling | Q150: 324
C151: Doubling of leading-tone | E151: >4N | F151: /LT doubling | Q151: 324
C152: Culmination on 5th: long downbeat | F152: /culmination | O152: Local culmination in upper voice within 4 measures in sp5. Sounds empty except last measure | Q152: 325
C153: Culmination on 8ve / unison: long downbeat | F153: /culmination | O153: Local culmination in upper voice within 4 measures in sp5. Sounds empty except last measure | Q153: 326
C154: Consecutive 5ths | F154: parallel | Q154: 84
C155: Consecutive 5ths | E155: E | F155: contrary | Q155: 85
C156: Consecutive 8ves or unisons | F156: parallel | Q156: 481
C157: Consecutive 8ves or unisons | E157: E | F157: contrary | Q157: 482
C158: Parallel 5ths: < measure apart | E158: <5 | F158: upbeat contrary | G158: last contrary | H158: non-chord | I158: downbeat | J158: sus harm | K158: upbeat | L158: different beats | M158: 2 oblique | O158: Two same non-close perfect consonances in neighboring measures less one measure length apart | Q158: 248 | R158: 376 | S158: 249 | T158: 316 | U158: 385 | V158: 250 | W158: 259 | X158: 224
C159: Parallel 5ths: < measure apart | E159: >4 | F159: upbeat contrary | G159: last contrary | H159: non-chord | I159: downbeat | J159: sus harm | K159: upbeat | L159: different beats | M159: 2 oblique | O159: Two same non-close perfect consonances in neighboring measures less one measure length apart | Q159: 248 | R159: 376 | S159: 249 | T159: 316 | U159: 385 | V159: 250 | W159: 259 | X159: 224
C160: Parallel 8ves / unisons: < measure apart | E160: <5 | F160: upbeat contrary | G160: last contrary | H160: non-chord | I160: downbeat | J160: sus harm | K160: upbeat | L160: different beats | M160: 2 oblique | O160: Two same non-close perfect consonances in neighboring measures less than one measure length apart | Q160: 484 | R160: 485 | S160: 488 | T160: 490 | U160: 491 | V160: 492 | W160: 260 | X160: 225
C161: Parallel 8ves / unisons: < measure apart | E161: >4 | F161: upbeat contrary | G161: last contrary | H161: non-chord | I161: downbeat | J161: sus harm | K161: upbeat | L161: different beats | M161: 2 oblique | O161: Two same non-close perfect consonances in neighboring measures less than one measure length apart | Q161: 484 | R161: 485 | S161: 488 | T161: 490 | U161: 491 | V161: 492 | W161: 260 | X161: 225
C162: Unison | F162: :on downbeat | G162: :follows m2 | H162: :follows M2 | Q162: 91 | R162: 275 | S162: 277
C163: Similar motion to 5th in outer voices | F163: stepw. cadence | G163: leap cadence | H163: downbeat, not cadence | I163: upbeat, not cadence | Q163: 208 | R163: 212 | S163: 210 | T163: 166
C164: Similar motion to unison | F164: stepw. cadence | G164: leap cadence | H164: downbeat, not cadence | I164: upbeat, not cadence | Q164: 72 | R164: 73 | S164: 76 | T164: 167
C165: Similar motion to 8ve in outer voices | F165: stepw. cadence | G165: leap cadence | H165: downbeat, not cadence | I165: upbeat, not cadence | Q165: 209 | R165: 213 | S165: 211 | T165: 168
B166: Suspension | C166: Suspension resolution sounds simultaneously with suspension | F166: :above sus | G166: :below sus | H166: :2nd | Q166: 216 | R166: 217 | S166: 218
C167: Wrong resolution of suspension | F167: :up | G167: :unresolved | H167: :by leap | I167: short | J167: :wrong beat | K167: on beat 2 | L167: on beat 4 | Q167: 219 | R167: 220 | S167: 221 | T167: 291 | U167: 286 | V167: 419 | W167: 420
C168: Suspension resolution ornament | F168: leap to resolution | G168: chatty | H168: leap from sus | Q168: 296 | R168: 292 | S168: 295
C169: Wrong usage of sus. in 2nd sp. | F169: I -> LT penultimate measure | G169: not I -> LT penultimate measure | Q169: 387 | R169: 388
C170: Suspension prepared by dissonance | F170: /diss. prep | Q170: 458
B171: Border | C171: Non-permitted first note | F171: V | G171: III syncope | H171: III | I171: Other | Q171: 532 | R171: 533 | S171: 534 | T171: 535
C172: Non-permitted last note | E172: EB | F172: V | G172: III | H172: Other | O172: For this rule E voice means highest voice, B means lowest voice, N means non-outer voice | Q172: 536 | R172: 537 | S172: 538
C173: Non-permitted last note | E173: N | F173: V | G173: III | H173: Other | O173: For this rule E voice means highest voice, B means lowest voice, N means non-outer voice | Q173: 536 | R173: 537 | S173: 538
C174: Non-permitted first harmony | F174: not T | Q174: 137
C175: Non-permitted last harmony | F175: not T | Q175: 531
C176: Non-permitted first harmonic interval | F176: M2 | G176: m7 | H176: M9 | I176: m2 | J176: M7 | K176: m9 | Q176: 241 | R176: 242 | S176: 243 | T176: 252 | U176: 253 | V176: 254
C177: Penultimate chord | F177: :no leading-tone | G177: :no V or VII chord | Q177: 47 | R177: 335
B178: Consecutive 3rds, 4ths and 6ths | C178: Too many consecutive harmonic 3rds | F178: > 3 | O178: More than AA 3rds in a row | Q178: 89
C179: Too many consecutive harmonic 4ths | F179: > 3 | O179: More than AA 4ths in a row | Q179: 238
C180: Too many consecutive harmonic 6ths | F180: > 3 | O180: More than AA 6ths in a row | Q180: 90
B181: Dissonance | C181: Unresolved harmonic tritone | F181: /unresolved | Q181: 379
C182: Consecutive tritones | F182: parallel | Q182: 162
C183: Consecutive tritones | E183: <6 | F183: contrary | Q183: 163
C184: Consecutive tritones | E184: 6E | F184: contrary | Q184: 163
C185: Misuse of a non-chord tone | F185: :on downbeat | G185: :longer than previous chord tone | H185: :first note | Q185: 83 | R185: 223 | S185: 551
C186: Neighbor tone should be surrounded by chord tones | F186: /wrong neighbor | Q186: 170
C187: Harmonic 4th | F187: :with lowest voice | Q187: 171
C188: Harmonic tritone | F188: :with lowest voice | G188: in archaic mode | Q188: 331 | R188: 195
C189: Non-chord tone approached by leap | F189: /leap | Q189: 36
C190: Non-chord tone left by leap | F190: /leap | Q190: 187
C191: Similar motion to tritone | F191: tritone | Q191: 161
C192: Similar motion to dissonance between outer voices | F192: m7 | G192: M7 | H192: m9 | I192: M9 | Q192: 169 | R192: 276 | S192: 173 | T192: 174
B193: Voice motion | C193: Voice overlapping | F193: adjacent (touch) | G193: adjacent voices | H193: non-adjacent | I193: direct 2nd | Q193: 29 | R193: 24 | S193: 548 | T193: 136
C194: Voice crossing is prohibited | F194: first measure | G194: last measure | H194: any | Q194: 541 | R194: 542 | S194: 543
C195: Voice crossing is too long | E195: <5 | F195: > 1.5 measures | G195: > 2.5 measures | Q195: 518 | R195: 519
C196: Voice crossing is too long | E196: >4 | F196: > 1.5 measures | G196: > 2.5 measures | Q196: 518 | R196: 519
C197: Voice crossing between non-adjacent voices | F197: /non-adjacent | Q197: 520
C198: 2nd interval during voice crossing | F198: /2nd interval | Q198: 544
C199: Similar motion with crossing voices | F199: :one voice leaps | G199: :both voices leap | Q199: 546 | R199: 547
C200: Consecutive 2nd intervals during voice crossing | F200: /Two 2nd intervals | O200: Two consecutive harmonic 2nd intervals | Q200: 545
... 23 more rows

Sheet Data
A1: Rid | B1: Class | C1: Group | D1: Rule | E1: Subrule | F1: VIZ | G1: VI | H1: VC | I1: VH | J1: VS | K1: VT | L1: FQ | M1: CF | N1: GFP | O1: IFP | P1: DEU | Q1: MEI | R1: ER | S1: UE | T1: R | U1: Severity | V1: Flag | W1: Spec | X1: Voice | Y1: GComment | Z1: Comment
A2: 1 | B2: Melody | C2: Uncompensated leap | D2: Uncompensated leap | E2: start 3rd | F2: 5 | H2: 1 | L2: =VLOOKUP($A2, Stat!$A$1:$C$1000, 2,0) -> 15 | M2: =VLOOKUP($A2, Stat!$A$1:$C$1000, 3,0) -> 1 | N2: 1 | U2: 0 | V2: -1 | X2: E | Y2: If no other uncompensated rules worked.
A3: 2 | B3: Melody | C3: Tritone | D3: Tritone: adjacent | E3: :resolved | F3: 13 | H3: 1 | L3: =VLOOKUP($A3, Stat!$A$1:$C$1000, 2,0) -> 8 | M3: =VLOOKUP($A3, Stat!$A$1:$C$1000, 3,0) -> 2 | N3: 1 | U3: 50 | V3: -1 | W3: 10 | Y3: Melodic adjacent tritone | Z3: Search 4 quarters for resolution if penultimate measure
A4: 3 | B4: Harmony | C4: Nonchord tones | D4: Double-neighbor tone | E4: approached by leap | H4: 1 | L4: =VLOOKUP($A4, Stat!$A$1:$C$1000, 2,0) -> 0 | M4: =VLOOKUP($A4, Stat!$A$1:$C$1000, 3,0) -> 0 | U4: 0 | V4: -1 | Z4: There is a leap before first note of double-neighbour tone group
A5: 8 | B5: Melody | C5: Change of melodic direction around leap | D5: Leap back | E5: <=6th | F5: 5 | H5: 1 | L5: =VLOOKUP($A5, Stat!$A$1:$C$1000, 2,0) -> 491 | M5: =VLOOKUP($A5, Stat!$A$1:$C$1000, 3,0) -> 1 | U5: 0 | V5: -1 | X5: E | Z5: After leap there is an immediate returning leap in the opposite direction. This returning leap is a 6th or shorter
A6: 10 | B6: Melody | C6: Melodic repeats | D6: Frequent return to the same note | E6: >3 in 7 notes | F6: 9 | H6: 1 | K6: Stagnation | L6: =VLOOKUP($A6, Stat!$A$1:$C$1000, 2,0) -> 39 | M6: =VLOOKUP($A6, Stat!$A$1:$C$1000, 3,0) -> 1 | O6: 1 | U6: 0 | V6: -1 | X6: E | Y6: Same note repeats more than AA times within BB adjacent notes
A7: 12 | B7: Melody | C7: Melodic repeats | D7: Melodic climax is repeated | E7: in upper part | H7: 1 | L7: =VLOOKUP($A7, Stat!$A$1:$C$1000, 2,0) -> 108 | M7: =VLOOKUP($A7, Stat!$A$1:$C$1000, 3,0) -> 39 | N7: 1 | R7: 21,78,79,193 | U7: 100 | V7: 0 | X7: E | Z7: Multiple culminations in higher voice
A8: 15 | B8: Melody | C8: Range | D8: No melody development | E8: 12 notes <12 | F8: 9 | H8: 1 | K8: Stagnation | L8: =VLOOKUP($A8, Stat!$A$1:$C$1000, 2,0) -> 36 | M8: =VLOOKUP($A8, Stat!$A$1:$C$1000, 3,0) -> 2 | O8: 1 | Q8: 1 | U8: 0 | V8: 1 | X8: E | Z8: Averaged melody direction within AA notes is less than BB deci-semitones
A9: 16 | B9: Melody | C9: Range | D9: No melody development | E9: 15 notes <15 | F9: 9 | H9: 1 | K9: Stagnation | L9: =VLOOKUP($A9, Stat!$A$1:$C$1000, 2,0) -> 20 | M9: =VLOOKUP($A9, Stat!$A$1:$C$1000, 3,0) -> 1 | O9: 1 | U9: 0 | V9: 1 | X9: E | Z9: Averaged melody direction within AA notes is less than BB deci-semitones
A10: 17 | B10: Harmony | C10: Harmony | D10: Repeating functions in a row | E10: >4 T | F10: 9 | H10: 1 | K10: Weak prog. | L10: =VLOOKUP($A10, Stat!$A$1:$C$1000, 2,0) -> 6 | M10: =VLOOKUP($A10, Stat!$A$1:$C$1000, 3,0) -> 0 | O10: 1 | T10: 17,20,23,48,57,77,92,99,428,429,430,431 | U10: 0 | V10: -1 | Y10: More than AA consecutive harmonies all have this letter
A11: 18 | B11: Melody | C11: Tritone | D11: Audible tritone: framed | E11: :resolved | F11: 13 | H11: 1 | L11: =VLOOKUP($A11, Stat!$A$1:$C$1000, 2,0) -> 4 | M11: =VLOOKUP($A11, Stat!$A$1:$C$1000, 3,0) -> 0 | N11: 1 | U11: 0 | V11: -1 | W11: 2345 | Y11: Tritone within measure with intermediate notes, framed by two melody direction changes
A12: 19 | B12: Melody | C12: Tritone | D12: Audible tritone: framed | E12: :unresolved | F12: 13 | H12: 1 | L12: =VLOOKUP($A12, Stat!$A$1:$C$1000, 2,0) -> 33 | M12: =VLOOKUP($A12, Stat!$A$1:$C$1000, 3,0) -> 21 | N12: 1 | R12: 18 | U12: 50 | V12: -1 | W12: 2345 | Y12: Tritone within measure with intermediate notes, framed by two melody direction changes
A13: 20 | B13: Harmony | C13: Harmony | D13: Missing functions in a row | E13: >5 without T | F13: 9 | H13: 1 | K13: No T | L13: =VLOOKUP($A13, Stat!$A$1:$C$1000, 2,0) -> 5 | M13: =VLOOKUP($A13, Stat!$A$1:$C$1000, 3,0) -> 0 | O13: 1 | T13: 17,20,23,48,57,77,92,99,428,429,430,431 | U13: 0 | V13: -1 | Y13: More than AA consecutive harmonies do not have this letter
A14: 21 | B14: Melody | C14: Melodic repeats | D14: Melodic climax | E14: late 3 | H14: 1 | L14: =VLOOKUP($A14, Stat!$A$1:$C$1000, 2,0) -> 198 | M14: =VLOOKUP($A14, Stat!$A$1:$C$1000, 3,0) -> 1 | Q14: 1 | U14: 0 | V14: 1 | X14: E | Z14: Only for upper voice
A15: 22 | B15: Melody | C15: Change of melodic direction around leap | D15: Leap back | E15: >6th | F15: 5 | H15: 1 | L15: =VLOOKUP($A15, Stat!$A$1:$C$1000, 2,0) -> 24 | M15: =VLOOKUP($A15, Stat!$A$1:$C$1000, 3,0) -> 12 | N15: 1 | U15: 0 | V15: -1 | X15: E | Z15: After leap there is an immediate returning leap in the opposite direction. This returning leap is longer than 6th
A16: 23 | B16: Harmony | C16: Harmony | D16: Harmonic progression | E16: 3 x bad | F16: 9 | H16: 1 | I16: 4 | K16: Weak prog. | L16: =VLOOKUP($A16, Stat!$A$1:$C$1000, 2,0) -> 19 | M16: =VLOOKUP($A16, Stat!$A$1:$C$1000, 3,0) -> 1 | T16: 17,20,23,48,57,77,92,99,428,429,430,431 | U16: 0 | V16: -1 | Z16: Three consecutive harmonic progressions each with penalty 2
A17: 24 | B17: Harmony | C17: Voice motion | D17: Voice overlapping | E17: adjacent voices | F17: 10 | H17: 1 | K17: Overlap | L17: =VLOOKUP($A17, Stat!$A$1:$C$1000, 2,0) -> 54 | M17: =VLOOKUP($A17, Stat!$A$1:$C$1000, 3,0) -> 9 | N17: 1 | U17: 50 | V17: 0
A18: 29 | B18: Harmony | C18: Voice motion | D18: Voice overlapping | E18: adjacent (touch) | F18: 10 | H18: 1 | K18: Overlap | U18: 50 | V18: -1
A19: 25 | B19: Melody | C19: Change of melodic direction around leap | D19: No change of direction before the leap between measures: >1skip + close | E19: 3rd | F19: 5 | H19: 1 | N19: 1 | U19: 50 | V19: -1 | X19: E | Y19: There is immediate melody direction change after leap, but before leap melody direction changes after more than one note, which go in the same direction as leap
A20: 26 | B20: Melody | C20: Change of melodic direction around leap | D20: No change of direction before the leap between measures: >1skip + close | E20: 4th | F20: 5 | H20: 1 | N20: 1 | U20: 50 | V20: -1 | X20: E | Y20: There is immediate melody direction change after leap, but before leap melody direction changes after more than one note, which go in the same direction as leap
A21: 27 | B21: Melody | C21: Change of melodic direction around leap | D21: No change of direction before the leap between measures: >1skip + close | E21: 5th | F21: 5 | H21: 1 | N21: 1 | U21: 100 | V21: -1 | X21: E | Y21: There is immediate melody direction change after leap, but before leap melody direction changes after more than one note, which go in the same direction as leap
A22: 28 | B22: Melody | C22: Change of melodic direction around leap | D22: No change of direction before the leap between measures: >1skip + close | E22: >5th | F22: 5 | H22: 1 | N22: 1 | U22: 100 | V22: 0 | X22: E | Y22: There is immediate melody direction change after leap, but before leap melody direction changes after more than one note, which go in the same direction as leap
A23: 30 | B23: Rhythm | C23: Repeats and ties | D23: Note repeat | E23: cantus | F23: 11 | H23: 1 | K23: Repeated note | L23: =VLOOKUP($A23, Stat!$A$1:$C$1000, 2,0) -> 0 | M23: =VLOOKUP($A23, Stat!$A$1:$C$1000, 3,0) -> 0 | N23: 1 | U23: 100 | V23: -1 | Z23: Slurs are prohibited in cantus
A24: 31 | B24: Melody | C24: Tritone | D24: Tritone: adjacent | E24: :unresolved | F24: 13 | H24: 1 | L24: =VLOOKUP($A24, Stat!$A$1:$C$1000, 2,0) -> 29 | M24: =VLOOKUP($A24, Stat!$A$1:$C$1000, 3,0) -> 3 | R24: 2 | U24: 100 | V24: -1 | W24: 10 | Y24: Melodic adjacent tritone
A25: 36 | B25: Harmony | C25: Dissonance | D25: Non-chord tone approached by leap | E25: /leap | H25: 1 | R25: 276,169 | U25: 100 | V25: -1 | Z25: Leap to harmonic upbeat dissonance
A26: 39 | B26: Melody | C26: Melodic repeats | D26: Frequent return to the same note | E26: >4 in 9 notes | F26: 9 | H26: 1 | K26: Stagnation | L26: =VLOOKUP($A26, Stat!$A$1:$C$1000, 2,0) -> 21 | M26: =VLOOKUP($A26, Stat!$A$1:$C$1000, 3,0) -> 0 | U26: 50 | V26: 0 | X26: E | Y26: Same note repeats more than AA times within BB adjacent notes
A27: 41 | B27: Rhythm | C27: Rhythm | D27: Note lasts for too many measures | E27: >2 | H27: 1 | L27: =VLOOKUP($A27, Stat!$A$1:$C$1000, 2,0) -> 15 | M27: =VLOOKUP($A27, Stat!$A$1:$C$1000, 3,0) -> 12 | N27: 1 | U27: 50 | V27: -1 | Z27: Note crosses more than two measures
A28: 42 | B28: Melody | C28: Compensated leap | D28: Uncompensated leap: compensation deviation to 2nd | E28: 3rd | F28: 5 | H28: 1 | L28: =VLOOKUP($A28, Stat!$A$1:$C$1000, 2,0) -> 199 | M28: =VLOOKUP($A28, Stat!$A$1:$C$1000, 3,0) -> 0 | P28: 999 | U28: 0 | V28: -1 | X28: E | Y28: Compensation can be deviated one 2nd interval above last leap note
A29: 43 | B29: Melody | C29: Compensated leap | D29: Uncompensated leap: compensation deviation to 2nd | E29: 4th | F29: 5 | H29: 1 | L29: =VLOOKUP($A29, Stat!$A$1:$C$1000, 2,0) -> 88 | M29: =VLOOKUP($A29, Stat!$A$1:$C$1000, 3,0) -> 0 | P29: 999 | U29: 0 | V29: -1 | X29: E | Y29: Compensation can be deviated one 2nd interval above last leap note
A30: 44 | B30: Melody | C30: Compensated leap | D30: Uncompensated leap: compensation deviation to 2nd | E30: 5th | F30: 5 | H30: 1 | L30: =VLOOKUP($A30, Stat!$A$1:$C$1000, 2,0) -> 76 | M30: =VLOOKUP($A30, Stat!$A$1:$C$1000, 3,0) -> 0 | P30: 999 | U30: 0 | V30: -1 | X30: E | Y30: Compensation can be deviated one 2nd interval above last leap note
A31: 45 | B31: Melody | C31: Compensated leap | D31: Uncompensated leap: compensation deviation to 2nd | E31: >5th | F31: 5 | H31: 1 | L31: =VLOOKUP($A31, Stat!$A$1:$C$1000, 2,0) -> 3 | M31: =VLOOKUP($A31, Stat!$A$1:$C$1000, 3,0) -> 0 | P31: 999 | U31: 0 | V31: 1 | X31: E | Y31: Compensation can be deviated one 2nd interval above last leap note
A32: 47 | B32: Harmony | C32: Border | D32: Penultimate chord | E32: :no leading-tone | F32: 1 | H32: 1 | L32: =VLOOKUP($A32, Stat!$A$1:$C$1000, 2,0) -> 108 | M32: =VLOOKUP($A32, Stat!$A$1:$C$1000, 3,0) -> 5 | U32: 50 | V32: -1 | Z32: no leading tone is allowed if last bass notes are V-I
A33: 48 | B33: Harmony | C33: Harmony | D33: Cadential progression | E33: V-I | F33: 1 | H33: 1 | L33: =VLOOKUP($A33, Stat!$A$1:$C$1000, 2,0) -> 1 | M33: =VLOOKUP($A33, Stat!$A$1:$C$1000, 3,0) -> 1 | N33: 1 | T33: 17,20,23,48,57,77,92,99,428,429,430,431 | U33: 50 | V33: -1 | Z33: Bass note going from V note to I octave in outer voices in D-T progression before cadence
A34: 53 | B34: Melody | C34: Compensated leap | D34: Compensation after 3rd | E34: 3rd | F34: 5 | H34: 1 | L34: =VLOOKUP($A34, Stat!$A$1:$C$1000, 2,0) -> 44 | M34: =VLOOKUP($A34, Stat!$A$1:$C$1000, 3,0) -> 0 | U34: 0 | V34: -1 | X34: E | Y34: Compensation has a gap of one 3rd below last leap note
A35: 54 | B35: Melody | C35: Compensated leap | D35: Compensation after 3rd | E35: 4th | F35: 5 | H35: 1 | L35: =VLOOKUP($A35, Stat!$A$1:$C$1000, 2,0) -> 28 | M35: =VLOOKUP($A35, Stat!$A$1:$C$1000, 3,0) -> 0 | U35: 0 | V35: -1 | X35: E | Y35: Compensation has a gap of one 3rd below last leap note
A36: 55 | B36: Melody | C36: Compensated leap | D36: Compensation after 3rd | E36: 5th | F36: 5 | H36: 1 | L36: =VLOOKUP($A36, Stat!$A$1:$C$1000, 2,0) -> 41 | M36: =VLOOKUP($A36, Stat!$A$1:$C$1000, 3,0) -> 0 | U36: 0 | V36: -1 | X36: E | Y36: Compensation has a gap of one 3rd below last leap note
A37: 56 | B37: Melody | C37: Compensated leap | D37: Compensation after 3rd | E37: >5th | F37: 5 | H37: 1 | L37: =VLOOKUP($A37, Stat!$A$1:$C$1000, 2,0) -> 32 | M37: =VLOOKUP($A37, Stat!$A$1:$C$1000, 3,0) -> 0 | U37: 0 | V37: -1 | X37: E | Y37: Compensation has a gap of one 3rd below last leap note
A38: 57 | B38: Harmony | C38: Harmony | D38: Harmonic progression | E38: bad | F38: 9 | H38: 1 | K38: Weak prog. | L38: =VLOOKUP($A38, Stat!$A$1:$C$1000, 2,0) -> 535 | M38: =VLOOKUP($A38, Stat!$A$1:$C$1000, 3,0) -> 1 | T38: 17,20,23,48,57,77,92,99,428,429,430,431 | U38: 0 | V38: -1 | Z38: See harmonic progressions with penalty 2
A39: 58 | B39: Melody | C39: Change of melodic direction around leap | D39: Leap back | E39: overflow | F39: 5 | H39: 1 | L39: =VLOOKUP($A39, Stat!$A$1:$C$1000, 2,0) -> 175 | M39: =VLOOKUP($A39, Stat!$A$1:$C$1000, 3,0) -> 33 | N39: 1 | U39: 0 | V39: -1 | X39: E | Z39: After leap there is an immediate returning leap in the opposite direction. This returning leap is longer than initial leap
A40: 59 | B40: Melody | C40: Change of melodic direction around leap | D40: No change of direction before the leap: 1skip + close | E40: 3rd | F40: 5 | H40: 1 | L40: =VLOOKUP($A40, Stat!$A$1:$C$1000, 2,0) -> 170 | M40: =VLOOKUP($A40, Stat!$A$1:$C$1000, 3,0) -> 0 | U40: 0 | V40: -1 | X40: E | Y40: There is immediate melody direction change after leap, but before leap melody direction changes after one note, which goes in the same direction as leap
A41: 60 | B41: Melody | C41: Change of melodic direction around leap | D41: No change of direction before the leap: 1skip + close | E41: 4th | F41: 5 | H41: 1 | L41: =VLOOKUP($A41, Stat!$A$1:$C$1000, 2,0) -> 44 | M41: =VLOOKUP($A41, Stat!$A$1:$C$1000, 3,0) -> 6 | U41: 0 | V41: -1 | X41: E | Y41: There is immediate melody direction change after leap, but before leap melody direction changes after one note, which goes in the same direction as leap
A42: 61 | B42: Melody | C42: Change of melodic direction around leap | D42: No change of direction before the leap: 1skip + close | E42: 5th | F42: 5 | H42: 1 | L42: =VLOOKUP($A42, Stat!$A$1:$C$1000, 2,0) -> 38 | M42: =VLOOKUP($A42, Stat!$A$1:$C$1000, 3,0) -> 5 | U42: 0 | V42: -1 | X42: E | Y42: There is immediate melody direction change after leap, but before leap melody direction changes after one note, which goes in the same direction as leap
A43: 62 | B43: Melody | C43: Change of melodic direction around leap | D43: No change of direction before the leap: 1skip + close | E43: >5th | F43: 5 | H43: 1 | L43: =VLOOKUP($A43, Stat!$A$1:$C$1000, 2,0) -> 23 | M43: =VLOOKUP($A43, Stat!$A$1:$C$1000, 3,0) -> 10 | N43: 1 | U43: 50 | V43: 0 | X43: E | Y43: There is immediate melody direction change after leap, but before leap melody direction changes after one note, which goes in the same direction as leap
A44: 63 | B44: Melody | C44: Change of melodic direction around leap | D44: No change of direction before and after the leap: 1skip + 1skip | E44: 3rd | F44: 5 | H44: 1 | L44: =VLOOKUP($A44, Stat!$A$1:$C$1000, 2,0) -> 18 | M44: =VLOOKUP($A44, Stat!$A$1:$C$1000, 3,0) -> 5 | N44: 1 | R44: 59,414,506 | U44: 0 | V44: -1 | X44: E | Y44: There is one note going in the same direction before and after leap
A45: 64 | B45: Melody | C45: Change of melodic direction around leap | D45: No change of direction before and after the leap: 1skip + 1skip | E45: 4th | F45: 5 | H45: 1 | L45: =VLOOKUP($A45, Stat!$A$1:$C$1000, 2,0) -> 6 | M45: =VLOOKUP($A45, Stat!$A$1:$C$1000, 3,0) -> 2 | N45: 1 | R45: 60,415,507 | U45: 0 | V45: -1 | X45: E | Y45: There is one note going in the same direction before and after leap
A46: 65 | B46: Melody | C46: Change of melodic direction around leap | D46: No change of direction before and after the leap: 1skip + 1skip | E46: 5th | F46: 5 | H46: 1 | L46: =VLOOKUP($A46, Stat!$A$1:$C$1000, 2,0) -> 7 | M46: =VLOOKUP($A46, Stat!$A$1:$C$1000, 3,0) -> 2 | N46: 1 | R46: 61,416,508 | U46: 50 | V46: 0 | X46: E | Y46: There is one note going in the same direction before and after leap
A47: 66 | B47: Melody | C47: Change of melodic direction around leap | D47: No change of direction before and after the leap: 1skip + 1skip | E47: >5th | F47: 5 | H47: 1 | L47: =VLOOKUP($A47, Stat!$A$1:$C$1000, 2,0) -> 2 | M47: =VLOOKUP($A47, Stat!$A$1:$C$1000, 3,0) -> 2 | N47: 1 | R47: 62,417,509 | U47: 100 | V47: 0 | X47: E | Y47: There is one note going in the same direction before and after leap
A48: 67 | B48: Melody | C48: Range | D48: Skipped notes | E48: 1 | H48: 1 | L48: =VLOOKUP($A48, Stat!$A$1:$C$1000, 2,0) -> 174 | M48: =VLOOKUP($A48, Stat!$A$1:$C$1000, 3,0) -> 45 | N48: 1 | U48: 0 | V48: -1 | Y48: Skipped notes that do not appear within this voice
A49: 68 | B49: Melody | C49: Range | D49: Skipped notes | E49: >1 | H49: 1 | L49: =VLOOKUP($A49, Stat!$A$1:$C$1000, 2,0) -> 20 | M49: =VLOOKUP($A49, Stat!$A$1:$C$1000, 3,0) -> 10 | N49: 1 | U49: 0 | V49: -1 | Y49: Skipped notes that do not appear within this voice
A50: 69 | B50: Melody | C50: Range | D50: Skipped notes | E50: >1 joined | H50: 1 | L50: =VLOOKUP($A50, Stat!$A$1:$C$1000, 2,0) -> 69 | M50: =VLOOKUP($A50, Stat!$A$1:$C$1000, 3,0) -> 24 | N50: 1 | U50: 0 | V50: -1 | Y50: Skipped notes that do not appear within this voice
A51: 70 | B51: Melody | C51: Melodic repeats | D51: Frequent return to the tonic | E51: 3 within 6 | F51: 9 | H51: 1 | K51: Many tonics | U51: 50 | V51: -1 | Y51: More than AA tonic notes within BB adjacent notes | Z51: AA tonic note equivalents within BB notes. Less weight is assigned to a tonic note in species 3,5 if all conditions meet: There is no leap above M3 to this tonic note. This tonic note is not a local culmination. This tonic note is not longer than previous note. This tonic note is not downbeat. Tonic note length is less than half note.
A52: 71 | B52: Melody | C52: Melodic repeats | D52: Frequent return to the tonic | E52: 4 within 12 | F52: 9 | H52: 1 | K52: Many tonics | U52: 50 | V52: -1 | Y52: More than AA tonic notes within BB adjacent notes | Z52: AA tonic note equivalents within BB notes. Less weight is assigned to a tonic note in species 3,5 if all conditions meet: There is no leap above M3 to this tonic note. This tonic note is not a local culmination. This tonic note is not longer than previous note. This tonic note is not downbeat. Tonic note length is less than half note.
A53: 72 | B53: Harmony | C53: Perfect consonance | D53: Similar motion to unison | E53: stepw. cadence | F53: 7 | G53: 3 | K53: !fn! | N53: 1 | U53: 0 | V53: -1 | Z53: Direct movement to unison with stepwize motion in higher voice to last measure
A54: 73 | B54: Harmony | C54: Perfect consonance | D54: Similar motion to unison | E54: leap cadence | F54: 7 | G54: 3 | K54: !fn! | N54: 1 | U54: 50 | V54: 0 | Z54: Direct movement to unison with leaping motion in higher voice to last measure
A55: 74 | B55: Melody | C55: Melodic minor | D55: bVII note | E55: :before the tonic | F55: 8 | H55: 1 | K55: VIIb, not LT | L55: =VLOOKUP($A55, Stat!$A$1:$C$1000, 2,0) -> 31 | M55: =VLOOKUP($A55, Stat!$A$1:$C$1000, 3,0) -> 4 | N55: 1 | U55: 50 | V55: -1 | Z55: Before tonic note: next (or second to next in cadence) in melodic minor, if both notes are chord tones
A56: 76 | B56: Harmony | C56: Perfect consonance | D56: Similar motion to unison | E56: downbeat, not cadence | F56: 7 | G56: 3 | K56: !fn! | N56: 1 | U56: 100 | V56: 0 | Z56: Direct movement to unison: not in cadence
A57: 77 | B57: Harmony | C57: Harmony | D57: Harmonic progression | E57: non-ideal | F57: 9 | H57: 1 | K57: Weak prog. | L57: =VLOOKUP($A57, Stat!$A$1:$C$1000, 2,0) -> 612 | M57: =VLOOKUP($A57, Stat!$A$1:$C$1000, 3,0) -> 0 | T57: 17,20,23,48,57,77,92,99,428,429,430,431 | U57: 0 | V57: -1 | Z57: See harmonic progressions with penalty 1
A58: 78 | B58: Melody | C58: Melodic repeats | D58: Melodic climax | E58: early <3 | H58: 1 | L58: =VLOOKUP($A58, Stat!$A$1:$C$1000, 2,0) -> 71 | M58: =VLOOKUP($A58, Stat!$A$1:$C$1000, 3,0) -> 1 | Q58: 1 | U58: 0 | V58: 1 | X58: E | Z58: Only for upper voice
A59: 79 | B59: Melody | C59: Melodic repeats | D59: Melodic climax | E59: early <5 | H59: 1 | L59: =VLOOKUP($A59, Stat!$A$1:$C$1000, 2,0) -> 94 | M59: =VLOOKUP($A59, Stat!$A$1:$C$1000, 3,0) -> 0 | Q59: 1 | U59: 0 | V59: 1 | X59: E | Z59: Only for upper voice
A60: 83 | B60: Harmony | C60: Dissonance | D60: Misuse of a non-chord tone | E60: :on downbeat | H60: 1 | L60: =VLOOKUP($A60, Stat!$A$1:$C$1000, 2,0) -> 219 | M60: =VLOOKUP($A60, Stat!$A$1:$C$1000, 3,0) -> 21 | R60: 169 | U60: 100 | V60: -1
A61: 84 | B61: Harmony | C61: Perfect consonance | D61: Consecutive 5ths | E61: parallel | F61: 7 | G61: 1 | K61: !fn! | L61: =VLOOKUP($A61, Stat!$A$1:$C$1000, 2,0) -> 32 | M61: =VLOOKUP($A61, Stat!$A$1:$C$1000, 3,0) -> 5 | N61: 1 | U61: 100 | V61: 0
A62: 85 | B62: Harmony | C62: Perfect consonance | D62: Consecutive 5ths | E62: contrary | F62: 7 | G62: 1 | K62: !fn! | L62: =VLOOKUP($A62, Stat!$A$1:$C$1000, 2,0) -> 0 | M62: =VLOOKUP($A62, Stat!$A$1:$C$1000, 3,0) -> 0 | N62: 1 | U62: 50 | V62: 0 | X62: E
A63: 88 | B63: Rhythm | C63: Rhythm | D63: Wrong usage of eighth notes | E63: leap | F63: 5 | H63: 1 | L63: =VLOOKUP($A63, Stat!$A$1:$C$1000, 2,0) -> 47 | M63: =VLOOKUP($A63, Stat!$A$1:$C$1000, 3,0) -> 12 | N63: 1 | U63: 50 | V63: -1 | Z63: Leap from or to 1/8 note
A64: 89 | B64: Harmony | C64: Consecutive 3rds, 4ths and 6ths | D64: Too many consecutive harmonic 3rds | E64: > 3 | F64: 9 | G64: 1 | H64: 1 | K64: Consec. 3rds | L64: =VLOOKUP($A64, Stat!$A$1:$C$1000, 2,0) -> 27 | M64: =VLOOKUP($A64, Stat!$A$1:$C$1000, 3,0) -> 0 | U64: 50 | V64: -1 | Y64: More than AA 3rds in a row
A65: 90 | B65: Harmony | C65: Consecutive 3rds, 4ths and 6ths | D65: Too many consecutive harmonic 6ths | E65: > 3 | F65: 9 | G65: 1 | H65: 1 | K65: Consec. 6ths | U65: 50 | V65: -1 | Y65: More than AA 6ths in a row
A66: 91 | B66: Harmony | C66: Perfect consonance | D66: Unison | E66: :on downbeat | F66: 2 | G66: 1 | H66: 1 | L66: =VLOOKUP($A66, Stat!$A$1:$C$1000, 2,0) -> 6 | M66: =VLOOKUP($A66, Stat!$A$1:$C$1000, 3,0) -> 2 | N66: 1 | U66: 50 | V66: -1 | Z66: Downbeat unison is not allowed inside counterpoint - only as first or last interval of counterpoint: except >4 voices or between two lowest voices in 4 voices.
A67: 92 | B67: Harmony | C67: Harmony | D67: Harmonic progression | E67: 2 x bad | F67: 9 | H67: 1 | K67: Weak prog. | L67: =VLOOKUP($A67, Stat!$A$1:$C$1000, 2,0) -> 103 | M67: =VLOOKUP($A67, Stat!$A$1:$C$1000, 3,0) -> 1 | T67: 17,20,23,48,57,77,92,99,428,429,430,431 | U67: 0 | V67: -1 | Z67: Two consecutive harmonic progressions each with penalty 2
A68: 93 | B68: Rhythm | C68: Repeats and ties | D68: Note is repeated: in 10 notes | E68: 1 | H68: 1 | L68: =VLOOKUP($A68, Stat!$A$1:$C$1000, 2,0) -> 36 | M68: =VLOOKUP($A68, Stat!$A$1:$C$1000, 3,0) -> 0 | Q68: 1 | U68: 0 | V68: -1 | W68: 2 | Y68: Note repeat happens several times
A69: 94 | B69: Rhythm | C69: Repeats and ties | D69: Note is repeated: in 10 notes | E69: 2 | H69: 1 | L69: =VLOOKUP($A69, Stat!$A$1:$C$1000, 2,0) -> 6 | M69: =VLOOKUP($A69, Stat!$A$1:$C$1000, 3,0) -> 0 | Q69: 1 | R69: 93 | U69: 50 | V69: -1 | W69: 2 | Y69: Note repeat happens several times
A70: 95 | B70: Rhythm | C70: Repeats and ties | D70: Note is repeated: in 10 notes | E70: >2 | H70: 1 | L70: =VLOOKUP($A70, Stat!$A$1:$C$1000, 2,0) -> 22 | M70: =VLOOKUP($A70, Stat!$A$1:$C$1000, 3,0) -> 0 | Q70: 1 | R70: 93,94 | U70: 50 | V70: -1 | W70: 2 | Y70: Note repeat happens several times
A71: 97 | B71: Harmony | C71: Nonchord tones | D71: Double-neighbor tone | E71: :left by leap | H71: 1 | L71: =VLOOKUP($A71, Stat!$A$1:$C$1000, 2,0) -> 3 | M71: =VLOOKUP($A71, Stat!$A$1:$C$1000, 3,0) -> 0 | U71: 50 | V71: -1 | Z71: There is a leap after last note of double-neighbour tone
A72: 99 | B72: Harmony | C72: Harmony | D72: Repeated harmony | E72: :in same inversion | F72: 1 | H72: 1 | L72: =VLOOKUP($A72, Stat!$A$1:$C$1000, 2,0) -> 28 | M72: =VLOOKUP($A72, Stat!$A$1:$C$1000, 3,0) -> 1 | T72: 17,20,23,48,57,77,92,99,428,429,430,431 | U72: 50 | V72: -1 | Y72: Harmonic stagnation | Z72: Chord is repeated with same inversion
A73: 100 | B73: Melody | C73: Compensated leap | D73: Compensated to 3rd prepared | E73: - | F73: 5 | H73: 1 | L73: =VLOOKUP($A73, Stat!$A$1:$C$1000, 2,0) -> 0 | M73: =VLOOKUP($A73, Stat!$A$1:$C$1000, 3,0) -> 0 | U73: 0 | V73: -1 | X73: E | Y73: Prepared within 5 notes
A74: 101 | B74: Melody | C74: Compensated leap | D74: Compensated to 3rd prepared | E74: 4th | F74: 5 | H74: 1 | L74: =VLOOKUP($A74, Stat!$A$1:$C$1000, 2,0) -> 94 | M74: =VLOOKUP($A74, Stat!$A$1:$C$1000, 3,0) -> 0 | U74: 0 | V74: -1 | X74: E | Y74: Prepared within 5 notes
A75: 102 | B75: Melody | C75: Compensated leap | D75: Compensated to 3rd prepared | E75: 5th | F75: 5 | H75: 1 | L75: =VLOOKUP($A75, Stat!$A$1:$C$1000, 2,0) -> 69 | M75: =VLOOKUP($A75, Stat!$A$1:$C$1000, 3,0) -> 0 | U75: 0 | V75: -1 | X75: E | Y75: Prepared within 5 notes
A76: 103 | B76: Melody | C76: Compensated leap | D76: Compensated to 3rd prepared | E76: >5th | F76: 5 | H76: 1 | L76: =VLOOKUP($A76, Stat!$A$1:$C$1000, 2,0) -> 39 | M76: =VLOOKUP($A76, Stat!$A$1:$C$1000, 3,0) -> 0 | U76: 0 | V76: -1 | X76: E | Y76: Prepared within 5 notes
A77: 104 | B77: Melody | C77: Compensated leap | D77: Compensated to 3rd | E77: - | F77: 5 | H77: 1 | L77: =VLOOKUP($A77, Stat!$A$1:$C$1000, 2,0) -> 0 | M77: =VLOOKUP($A77, Stat!$A$1:$C$1000, 3,0) -> 0 | U77: 0 | V77: -1 | X77: E
A78: 105 | B78: Melody | C78: Compensated leap | D78: Compensated to 3rd | E78: 4th | F78: 5 | H78: 1 | L78: =VLOOKUP($A78, Stat!$A$1:$C$1000, 2,0) -> 0 | M78: =VLOOKUP($A78, Stat!$A$1:$C$1000, 3,0) -> 0 | U78: 0 | V78: -1 | X78: E
A79: 106 | B79: Melody | C79: Compensated leap | D79: Compensated to 3rd | E79: 5th | F79: 5 | H79: 1 | L79: =VLOOKUP($A79, Stat!$A$1:$C$1000, 2,0) -> 0 | M79: =VLOOKUP($A79, Stat!$A$1:$C$1000, 3,0) -> 0 | U79: 0 | V79: -1 | X79: E
A80: 107 | B80: Melody | C80: Compensated leap | D80: Compensated to 3rd | E80: >5th | F80: 5 | H80: 1 | L80: =VLOOKUP($A80, Stat!$A$1:$C$1000, 2,0) -> 0 | M80: =VLOOKUP($A80, Stat!$A$1:$C$1000, 3,0) -> 0 | U80: 0 | V80: -1 | X80: E
A81: 108 | B81: Melody | C81: Change of melodic direction around leap | D81: No change of direction after the leap: close + >2skip | E81: 3rd | F81: 5 | H81: 1 | L81: =VLOOKUP($A81, Stat!$A$1:$C$1000, 2,0) -> 73 | M81: =VLOOKUP($A81, Stat!$A$1:$C$1000, 3,0) -> 0 | R81: 128,140,510 | U81: 0 | V81: -1 | X81: E | Y81: There is immediate melody direction change before leap, but after leap melody direction changes after more than two notes, which go in the same direction as leap
A82: 109 | B82: Melody | C82: Change of melodic direction around leap | D82: No change of direction after the leap: close + >2skip | E82: 4th | F82: 5 | H82: 1 | L82: =VLOOKUP($A82, Stat!$A$1:$C$1000, 2,0) -> 11 | M82: =VLOOKUP($A82, Stat!$A$1:$C$1000, 3,0) -> 5 | N82: 1 | R82: 129,141,511 | U82: 0 | V82: -1 | X82: E | Y82: There is immediate melody direction change before leap, but after leap melody direction changes after more than two notes, which go in the same direction as leap
A83: 110 | B83: Melody | C83: Change of melodic direction around leap | D83: No change of direction after the leap: close + >2skip | E83: 5th | F83: 5 | H83: 1 | L83: =VLOOKUP($A83, Stat!$A$1:$C$1000, 2,0) -> 9 | M83: =VLOOKUP($A83, Stat!$A$1:$C$1000, 3,0) -> 3 | N83: 1 | R83: 130,142,512 | U83: 100 | V83: 0 | X83: E | Y83: There is immediate melody direction change before leap, but after leap melody direction changes after more than two notes, which go in the same direction as leap
A84: 111 | B84: Melody | C84: Change of melodic direction around leap | D84: No change of direction after the leap: close + >2skip | E84: >5th | F84: 5 | H84: 1 | L84: =VLOOKUP($A84, Stat!$A$1:$C$1000, 2,0) -> 2 | M84: =VLOOKUP($A84, Stat!$A$1:$C$1000, 3,0) -> 1 | N84: 1 | R84: 131,143,513 | U84: 100 | V84: 0 | X84: E | Y84: There is immediate melody direction change before leap, but after leap melody direction changes after more than two notes, which go in the same direction as leap
A85: 112 | B85: Melody | C85: Uncompensated leap | D85: Uncompensated leap: precompensated | E85: 3rd | F85: 5 | H85: 1 | L85: =VLOOKUP($A85, Stat!$A$1:$C$1000, 2,0) -> 151 | M85: =VLOOKUP($A85, Stat!$A$1:$C$1000, 3,0) -> 0 | R85: 144,120,42 | U85: 0 | V85: -1 | X85: E
A86: 113 | B86: Melody | C86: Uncompensated leap | D86: Uncompensated leap: precompensated | E86: 4th | F86: 5 | H86: 1 | L86: =VLOOKUP($A86, Stat!$A$1:$C$1000, 2,0) -> 19 | M86: =VLOOKUP($A86, Stat!$A$1:$C$1000, 3,0) -> 0 | R86: 145,121,43 | U86: 0 | V86: -1 | X86: E
A87: 114 | B87: Melody | C87: Uncompensated leap | D87: Uncompensated leap: precompensated | E87: 5th | F87: 5 | H87: 1 | L87: =VLOOKUP($A87, Stat!$A$1:$C$1000, 2,0) -> 8 | M87: =VLOOKUP($A87, Stat!$A$1:$C$1000, 3,0) -> 0 | R87: 146,122,44 | U87: 50 | V87: 0 | X87: E
A88: 115 | B88: Melody | C88: Uncompensated leap | D88: Uncompensated leap: precompensated | E88: >5th | F88: 5 | H88: 1 | L88: =VLOOKUP($A88, Stat!$A$1:$C$1000, 2,0) -> 24 | M88: =VLOOKUP($A88, Stat!$A$1:$C$1000, 3,0) -> 0 | R88: 147,123,45 | U88: 100 | V88: 0 | X88: E
A89: 116 | B89: Melody | C89: Uncompensated leap | D89: Uncompensated child leap | E89: 3rd | F89: 5 | H89: 1 | L89: =VLOOKUP($A89, Stat!$A$1:$C$1000, 2,0) -> 43 | M89: =VLOOKUP($A89, Stat!$A$1:$C$1000, 3,0) -> 0 | R89: 144,120,42 | U89: 0 | V89: -1 | X89: E | Y89: After longer leap or before longer/same/one-note-smaller leap.
A90: 117 | B90: Melody | C90: Uncompensated leap | D90: Uncompensated child leap | E90: 4th | F90: 5 | H90: 1 | L90: =VLOOKUP($A90, Stat!$A$1:$C$1000, 2,0) -> 45 | M90: =VLOOKUP($A90, Stat!$A$1:$C$1000, 3,0) -> 0 | R90: 145,121,43 | U90: 0 | V90: -1 | X90: E | Y90: After longer leap or before longer/same/one-note-smaller leap.
A91: 118 | B91: Melody | C91: Uncompensated leap | D91: Uncompensated child leap | E91: 5th | F91: 5 | H91: 1 | L91: =VLOOKUP($A91, Stat!$A$1:$C$1000, 2,0) -> 25 | M91: =VLOOKUP($A91, Stat!$A$1:$C$1000, 3,0) -> 0 | R91: 146,122,44 | U91: 0 | V91: -1 | X91: E | Y91: After longer leap or before longer/same/one-note-smaller leap.
A92: 119 | B92: Melody | C92: Uncompensated leap | D92: Uncompensated child leap | E92: >5th | F92: 5 | H92: 1 | L92: =VLOOKUP($A92, Stat!$A$1:$C$1000, 2,0) -> 20 | M92: =VLOOKUP($A92, Stat!$A$1:$C$1000, 3,0) -> 0 | R92: 147,123,45 | U92: 0 | V92: -1 | X92: E | Y92: After longer leap or before longer/same/one-note-smaller leap.
A93: 120 | B93: Melody | C93: Compensated leap | D93: Uncompensated leap: compensation deviation to 3rd | E93: 3rd | F93: 5 | H93: 1 | L93: =VLOOKUP($A93, Stat!$A$1:$C$1000, 2,0) -> 84 | M93: =VLOOKUP($A93, Stat!$A$1:$C$1000, 3,0) -> 0 | P93: 999 | U93: 0 | V93: -1 | W93: 35 | X93: E | Y93: Compensation can be deviated one 3rd interval above last leap note
A94: 121 | B94: Melody | C94: Compensated leap | D94: Uncompensated leap: compensation deviation to 3rd | E94: 4th | F94: 5 | H94: 1 | L94: =VLOOKUP($A94, Stat!$A$1:$C$1000, 2,0) -> 58 | M94: =VLOOKUP($A94, Stat!$A$1:$C$1000, 3,0) -> 0 | P94: 999 | U94: 0 | V94: -1 | W94: 35 | X94: E | Y94: Compensation can be deviated one 3rd interval above last leap note
A95: 122 | B95: Melody | C95: Compensated leap | D95: Uncompensated leap: compensation deviation to 3rd | E95: 5th | F95: 5 | H95: 1 | L95: =VLOOKUP($A95, Stat!$A$1:$C$1000, 2,0) -> 23 | M95: =VLOOKUP($A95, Stat!$A$1:$C$1000, 3,0) -> 0 | P95: 999 | U95: 0 | V95: -1 | W95: 35 | X95: E | Y95: Compensation can be deviated one 3rd interval above last leap note
A96: 123 | B96: Melody | C96: Compensated leap | D96: Uncompensated leap: compensation deviation to 3rd | E96: >5th | F96: 5 | H96: 1 | L96: =VLOOKUP($A96, Stat!$A$1:$C$1000, 2,0) -> 0 | M96: =VLOOKUP($A96, Stat!$A$1:$C$1000, 3,0) -> 0 | P96: 999 | U96: 50 | V96: 0 | W96: 35 | X96: E | Y96: Compensation can be deviated one 3rd interval above last leap note | Z96: Possible in species 3,5 when immediate with short notes
A97: 124 | B97: Melody | C97: Uncompensated leap | D97: Uncompensated leap | E97: 3rd | F97: 5 | H97: 1 | L97: =VLOOKUP($A97, Stat!$A$1:$C$1000, 2,0) -> 36 | M97: =VLOOKUP($A97, Stat!$A$1:$C$1000, 3,0) -> 1 | R97: 144,120,42 | U97: 0 | V97: -1 | X97: E | Y97: If no other uncompensated rules worked.
A98: 125 | B98: Melody | C98: Uncompensated leap | D98: Uncompensated leap | E98: 4th | F98: 5 | H98: 1 | L98: =VLOOKUP($A98, Stat!$A$1:$C$1000, 2,0) -> 39 | M98: =VLOOKUP($A98, Stat!$A$1:$C$1000, 3,0) -> 1 | R98: 145,121,43 | U98: 0 | V98: -1 | X98: E | Y98: If no other uncompensated rules worked. | Z98: Possible in cantus
A99: 126 | B99: Melody | C99: Uncompensated leap | D99: Uncompensated leap | E99: 5th | F99: 5 | H99: 1 | L99: =VLOOKUP($A99, Stat!$A$1:$C$1000, 2,0) -> 60 | M99: =VLOOKUP($A99, Stat!$A$1:$C$1000, 3,0) -> 1 | R99: 146,122,44 | U99: 50 | V99: 0 | X99: E | Y99: If no other uncompensated rules worked.
A100: 127 | B100: Melody | C100: Uncompensated leap | D100: Uncompensated leap | E100: >5th | F100: 5 | H100: 1 | L100: =VLOOKUP($A100, Stat!$A$1:$C$1000, 2,0) -> 88 | M100: =VLOOKUP($A100, Stat!$A$1:$C$1000, 3,0) -> 1 | R100: 147,123,45 | U100: 100 | V100: 0 | X100: E | Y100: If no other uncompensated rules worked.
A101: 128 | B101: Melody | C101: Change of melodic direction around leap | D101: No change of direction after the leap: close + 1skip | E101: 3rd | F101: 5 | H101: 1 | L101: =VLOOKUP($A101, Stat!$A$1:$C$1000, 2,0) -> 126 | M101: =VLOOKUP($A101, Stat!$A$1:$C$1000, 3,0) -> 0 | R101: 510 | U101: 0 | V101: -1 | X101: E | Y101: There is immediate melody direction change before leap, but after leap melody direction changes only after one note, which goes in the same direction as leap
A102: 129 | B102: Melody | C102: Change of melodic direction around leap | D102: No change of direction after the leap: close + 1skip | E102: 4th | F102: 5 | H102: 1 | L102: =VLOOKUP($A102, Stat!$A$1:$C$1000, 2,0) -> 55 | M102: =VLOOKUP($A102, Stat!$A$1:$C$1000, 3,0) -> 9 | R102: 511 | U102: 0 | V102: -1 | X102: E | Y102: There is immediate melody direction change before leap, but after leap melody direction changes only after one note, which goes in the same direction as leap
A103: 130 | B103: Melody | C103: Change of melodic direction around leap | D103: No change of direction after the leap: close + 1skip | E103: 5th | F103: 5 | H103: 1 | L103: =VLOOKUP($A103, Stat!$A$1:$C$1000, 2,0) -> 38 | M103: =VLOOKUP($A103, Stat!$A$1:$C$1000, 3,0) -> 5 | R103: 512 | U103: 0 | V103: -1 | X103: E | Y103: There is immediate melody direction change before leap, but after leap melody direction changes only after one note, which goes in the same direction as leap
A104: 131 | B104: Melody | C104: Change of melodic direction around leap | D104: No change of direction after the leap: close + 1skip | E104: >5th | F104: 5 | H104: 1 | L104: =VLOOKUP($A104, Stat!$A$1:$C$1000, 2,0) -> 27 | M104: =VLOOKUP($A104, Stat!$A$1:$C$1000, 3,0) -> 12 | N104: 1 | R104: 513 | U104: 50 | V104: 0 | X104: E | Y104: There is immediate melody direction change before leap, but after leap melody direction changes only after one note, which goes in the same direction as leap
A105: 132 | B105: Melody | C105: Change of melodic direction around leap | D105: No change of direction before the leap: >1skip + close | E105: 3rd | F105: 5 | H105: 1 | L105: =VLOOKUP($A105, Stat!$A$1:$C$1000, 2,0) -> 185 | M105: =VLOOKUP($A105, Stat!$A$1:$C$1000, 3,0) -> 0 | U105: 0 | V105: -1 | X105: E | Y105: There is immediate melody direction change after leap, but before leap melody direction changes after more than one note, which go in the same direction as leap
A106: 133 | B106: Melody | C106: Change of melodic direction around leap | D106: No change of direction before the leap: >1skip + close | E106: 4th | F106: 5 | H106: 1 | L106: =VLOOKUP($A106, Stat!$A$1:$C$1000, 2,0) -> 70 | M106: =VLOOKUP($A106, Stat!$A$1:$C$1000, 3,0) -> 7 | U106: 0 | V106: -1 | X106: E | Y106: There is immediate melody direction change after leap, but before leap melody direction changes after more than one note, which go in the same direction as leap
A107: 134 | B107: Melody | C107: Change of melodic direction around leap | D107: No change of direction before the leap: >1skip + close | E107: 5th | F107: 5 | H107: 1 | L107: =VLOOKUP($A107, Stat!$A$1:$C$1000, 2,0) -> 36 | M107: =VLOOKUP($A107, Stat!$A$1:$C$1000, 3,0) -> 6 | U107: 0 | V107: -1 | X107: E | Y107: There is immediate melody direction change after leap, but before leap melody direction changes after more than one note, which go in the same direction as leap
A108: 135 | B108: Melody | C108: Change of melodic direction around leap | D108: No change of direction before the leap: >1skip + close | E108: >5th | F108: 5 | H108: 1 | L108: =VLOOKUP($A108, Stat!$A$1:$C$1000, 2,0) -> 13 | M108: =VLOOKUP($A108, Stat!$A$1:$C$1000, 3,0) -> 4 | N108: 1 | U108: 100 | V108: 0 | X108: E | Y108: There is immediate melody direction change after leap, but before leap melody direction changes after more than one note, which go in the same direction as leap
A109: 136 | B109: Harmony | C109: Voice motion | D109: Voice overlapping | E109: direct 2nd | F109: 7 | G109: 3 | K109: !fn! | U109: 100 | V109: 0 | Z109: Similar movement to harmonic second interval
A110: 137 | B110: Harmony | C110: Border | D110: Non-permitted first harmony | E110: not T | F110: 1 | H110: 1 | U110: 50 | V110: -1 | Z110: Also prohibits T6
A111: 138 | B111: Rhythm | C111: Rhythm | D111: Misuse of rest | E111: wrong starting rest | H111: 1 | U111: 50 | V111: -1 | Z111: Wrong starting rest length
A112: 140 | B112: Melody | C112: Change of melodic direction around leap | D112: No change of direction after the leap: close + 2skip | E112: 3rd | F112: 5 | H112: 1 | L112: =VLOOKUP($A112, Stat!$A$1:$C$1000, 2,0) -> 69 | M112: =VLOOKUP($A112, Stat!$A$1:$C$1000, 3,0) -> 1 | R112: 128,510 | U112: 0 | V112: -1 | X112: E | Y112: There is immediate melody direction change before leap, but after leap melody direction changes only after two notes, which go in the same direction as leap
A113: 141 | B113: Melody | C113: Change of melodic direction around leap | D113: No change of direction after the leap: close + 2skip | E113: 4th | F113: 5 | H113: 1 | L113: =VLOOKUP($A113, Stat!$A$1:$C$1000, 2,0) -> 29 | M113: =VLOOKUP($A113, Stat!$A$1:$C$1000, 3,0) -> 1 | R113: 129,511 | U113: 0 | V113: -1 | X113: E | Y113: There is immediate melody direction change before leap, but after leap melody direction changes only after two notes, which go in the same direction as leap
A114: 142 | B114: Melody | C114: Change of melodic direction around leap | D114: No change of direction after the leap: close + 2skip | E114: 5th | F114: 5 | H114: 1 | L114: =VLOOKUP($A114, Stat!$A$1:$C$1000, 2,0) -> 13 | M114: =VLOOKUP($A114, Stat!$A$1:$C$1000, 3,0) -> 3 | N114: 1 | R114: 130,512 | U114: 50 | V114: 0 | X114: E | Y114: There is immediate melody direction change before leap, but after leap melody direction changes only after two notes, which go in the same direction as leap
A115: 143 | B115: Melody | C115: Change of melodic direction around leap | D115: No change of direction after the leap: close + 2skip | E115: >5th | F115: 5 | H115: 1 | L115: =VLOOKUP($A115, Stat!$A$1:$C$1000, 2,0) -> 6 | M115: =VLOOKUP($A115, Stat!$A$1:$C$1000, 3,0) -> 4 | N115: 1 | R115: 131,513 | U115: 100 | V115: 0 | X115: E | Y115: There is immediate melody direction change before leap, but after leap melody direction changes only after two notes, which go in the same direction as leap
A116: 144 | B116: Melody | C116: Compensated leap | D116: C5P last 4 measures, 8 notes | E116: 3rd | F116: 5 | H116: 1 | L116: =VLOOKUP($A116, Stat!$A$1:$C$1000, 2,0) -> 0 | M116: =VLOOKUP($A116, Stat!$A$1:$C$1000, 3,0) -> 0 | U116: 0 | V116: -1 | X116: E | Y116: Compensated to 5th, precompensated within 6 notes
A117: 145 | B117: Melody | C117: Compensated leap | D117: C5P last 4 measures, 8 notes | E117: 4th | F117: 5 | H117: 1 | L117: =VLOOKUP($A117, Stat!$A$1:$C$1000, 2,0) -> 92 | M117: =VLOOKUP($A117, Stat!$A$1:$C$1000, 3,0) -> 0 | U117: 0 | V117: -1 | X117: E | Y117: Compensated to 5th, precompensated within 6 notes
A118: 146 | B118: Melody | C118: Compensated leap | D118: C5P last 4 measures, 8 notes | E118: 5th | F118: 5 | H118: 1 | L118: =VLOOKUP($A118, Stat!$A$1:$C$1000, 2,0) -> 127 | M118: =VLOOKUP($A118, Stat!$A$1:$C$1000, 3,0) -> 0 | U118: 0 | V118: -1 | X118: E | Y118: Compensated to 5th, precompensated within 6 notes
A119: 147 | B119: Melody | C119: Compensated leap | D119: C5P last 4 measures, 8 notes | E119: >5th | F119: 5 | H119: 1 | L119: =VLOOKUP($A119, Stat!$A$1:$C$1000, 2,0) -> 40 | M119: =VLOOKUP($A119, Stat!$A$1:$C$1000, 3,0) -> 0 | U119: 0 | V119: -1 | X119: E | Y119: Compensated to 5th, precompensated within 6 notes
A120: 148 | B120: Melody | C120: Change of melodic direction around leap | D120: No change of direction before and after the leap: >1skip + 1skip | E120: 3rd | F120: 5 | H120: 1 | L120: =VLOOKUP($A120, Stat!$A$1:$C$1000, 2,0) -> 20 | M120: =VLOOKUP($A120, Stat!$A$1:$C$1000, 3,0) -> 1 | R120: 132 | U120: 0 | V120: -1 | X120: E | Y120: There is more than one note going in the same direction before leap and one note going in the same direction after leap
A121: 149 | B121: Melody | C121: Change of melodic direction around leap | D121: No change of direction before and after the leap: >1skip + 1skip | E121: 4th | F121: 5 | H121: 1 | L121: =VLOOKUP($A121, Stat!$A$1:$C$1000, 2,0) -> 5 | M121: =VLOOKUP($A121, Stat!$A$1:$C$1000, 3,0) -> 2 | N121: 1 | R121: 133 | U121: 0 | V121: -1 | X121: E | Y121: There is more than one note going in the same direction before leap and one note going in the same direction after leap
A122: 150 | B122: Melody | C122: Change of melodic direction around leap | D122: No change of direction before and after the leap: >1skip + 1skip | E122: 5th | F122: 5 | H122: 1 | L122: =VLOOKUP($A122, Stat!$A$1:$C$1000, 2,0) -> 4 | M122: =VLOOKUP($A122, Stat!$A$1:$C$1000, 3,0) -> 2 | N122: 1 | R122: 134 | U122: 100 | V122: 0 | X122: E | Y122: There is more than one note going in the same direction before leap and one note going in the same direction after leap
A123: 151 | B123: Melody | C123: Change of melodic direction around leap | D123: No change of direction before and after the leap: >1skip + 1skip | E123: >5th | F123: 5 | H123: 1 | L123: =VLOOKUP($A123, Stat!$A$1:$C$1000, 2,0) -> 0 | M123: =VLOOKUP($A123, Stat!$A$1:$C$1000, 3,0) -> 0 | N123: 1 | R123: 135 | U123: 100 | V123: 0 | X123: E | Y123: There is more than one note going in the same direction before leap and one note going in the same direction after leap
A124: 152 | B124: Melody | C124: Melodic minor | D124: Chromaticism: close | E124: VI<->VI# | F124: 8 | H124: 1 | K124: !srn! | L124: =VLOOKUP($A124, Stat!$A$1:$C$1000, 2,0) -> 1 | M124: =VLOOKUP($A124, Stat!$A$1:$C$1000, 3,0) -> 1 | N124: 1 | U124: 100 | V124: -1 | Y124: These two notes are tightly close | Z124: Chromatic
A125: 153 | B125: Melody | C125: Melodic minor | D125: Chromaticism: close | E125: VII<->VII# | F125: 8 | H125: 1 | K125: !srn! | L125: =VLOOKUP($A125, Stat!$A$1:$C$1000, 2,0) -> 3 | M125: =VLOOKUP($A125, Stat!$A$1:$C$1000, 3,0) -> 2 | N125: 1 | U125: 100 | V125: -1 | Y125: These two notes are tightly close | Z125: Chromatic
A126: 154 | B126: Melody | C126: Melodic minor | D126: Dim or aug melodic interval | E126: VI<->VII# | F126: 8 | H126: 1 | K126: !srn! | L126: =VLOOKUP($A126, Stat!$A$1:$C$1000, 2,0) -> 15 | M126: =VLOOKUP($A126, Stat!$A$1:$C$1000, 3,0) -> 3 | N126: 1 | U126: 50 | V126: -1 | Z126: Augmented / diminished
A127: 155 | B127: Melody | C127: Melodic minor | D127: Dim or aug melodic interval | E127: VI#<->III | F127: 8 | H127: 1 | K127: !srn! | L127: =VLOOKUP($A127, Stat!$A$1:$C$1000, 2,0) -> 4 | M127: =VLOOKUP($A127, Stat!$A$1:$C$1000, 3,0) -> 1 | N127: 1 | U127: 100 | V127: -1 | Z127: Augmented / diminished
A128: 156 | B128: Melody | C128: Melodic minor | D128: Dim or aug melodic interval | E128: VII#-III | F128: 8 | H128: 1 | K128: !srn! | L128: =VLOOKUP($A128, Stat!$A$1:$C$1000, 2,0) -> 7 | M128: =VLOOKUP($A128, Stat!$A$1:$C$1000, 3,0) -> 3 | N128: 1 | U128: 100 | V128: -1 | Z128: Augmented / diminished
A129: 157 | B129: Melody | C129: Melodic minor | D129: Dim or aug melodic interval | E129: III-VII# | F129: 8 | H129: 1 | K129: !srn! | L129: =VLOOKUP($A129, Stat!$A$1:$C$1000, 2,0) -> 3 | M129: =VLOOKUP($A129, Stat!$A$1:$C$1000, 3,0) -> 1 | N129: 1 | U129: 100 | V129: -1 | Z129: Augmented / diminished
A130: 158 | B130: Melody | C130: Melodic minor | D130: Chromaticism: far | E130: VI<->VI# | F130: 8 | H130: 1 | K130: !srn! | L130: =VLOOKUP($A130, Stat!$A$1:$C$1000, 2,0) -> 7 | M130: =VLOOKUP($A130, Stat!$A$1:$C$1000, 3,0) -> 3 | N130: 1 | U130: 50 | V130: -1 | Y130: These two notes are one note apart and are in neighboring harmonies
A131: 159 | B131: Melody | C131: Melodic minor | D131: Chromaticism: far | E131: VII<->VII# | F131: 8 | H131: 1 | K131: !srn! | L131: =VLOOKUP($A131, Stat!$A$1:$C$1000, 2,0) -> 3 | M131: =VLOOKUP($A131, Stat!$A$1:$C$1000, 3,0) -> 1 | N131: 1 | U131: 50 | V131: -1 | Y131: These two notes are one note apart and are in neighboring harmonies
A132: 160 | B132: Rhythm | C132: Rhythm | D132: Non-permitted rhythm | E132: whole inside | H132: 1 | U132: 50 | V132: -1 | Z132: Whole or longer note in measure in species 2 or 4. In species 5 allowed only if other voices move
A133: 164 | B133: Harmony | C133: Melodic minor | D133: False chromatic relation: in non-outer voices | E133: VI<->VI# | F133: 1 | L133: =VLOOKUP($A133, Stat!$A$1:$C$1000, 2,0) -> 25 | M133: =VLOOKUP($A133, Stat!$A$1:$C$1000, 3,0) -> 4 | N133: 1 | U133: 50 | V133: -1 | Y133: These two notes are harmonic tones in neighboring harmonies, but are in different voices
A134: 165 | B134: Harmony | C134: Melodic minor | D134: False chromatic relation: in non-outer voices | E134: VII<->VII# | L134: =VLOOKUP($A134, Stat!$A$1:$C$1000, 2,0) -> 30 | M134: =VLOOKUP($A134, Stat!$A$1:$C$1000, 3,0) -> 6 | N134: 1 | U134: 50 | V134: -1 | Y134: These two notes are harmonic tones in neighboring harmonies, but are in different voices
A135: 169 | B135: Harmony | C135: Dissonance | D135: Similar motion to dissonance between outer voices | E135: m7 | F135: 7 | G135: 3 | K135: !fn! | L135: =VLOOKUP($A135, Stat!$A$1:$C$1000, 2,0) -> 904 | M135: =VLOOKUP($A135, Stat!$A$1:$C$1000, 3,0) -> 3 | U135: 50 | V135: 0 | Z135: Minor 7th
A136: 170 | B136: Harmony | C136: Dissonance | D136: Neighbor tone should be surrounded by chord tones | E136: /wrong neighbor | H136: 1 | U136: 50 | V136: -1
A137: 171 | B137: Harmony | C137: Dissonance | D137: Harmonic 4th | E137: :with lowest voice | H137: 1 | U137: 50 | V137: -1 | Z137: 4th interval is prohibited between two chord tones with bass
A138: 172 | B138: Harmony | C138: Harmony | D138: Incomplete harmony | E138: penultimate | F138: 1 | H138: 1 | U138: 50 | V138: -1 | Z138: Starting from 3 voices chords in penultimate measure should have all three chord tones on first beat or suspension resolution or PDD resolution note. In 2 voices - at least two chord tones.
A139: 173 | B139: Harmony | C139: Dissonance | D139: Similar motion to dissonance between outer voices | E139: m9 | F139: 7 | G139: 3 | K139: !fn! | U139: 50 | V139: 0 | Z139: Minor 9th
A140: 174 | B140: Harmony | C140: Dissonance | D140: Similar motion to dissonance between outer voices | E140: M9 | F140: 7 | G140: 3 | K140: !fn! | U140: 50 | V140: 0 | Z140: Major 9th
A141: 175 | B141: Melody | C141: Leaps | D141: Non-permitted melodic interval: ascending | E141: :m6 | F141: 5 | H141: 1 | L141: =VLOOKUP($A141, Stat!$A$1:$C$1000, 2,0) -> 64 | M141: =VLOOKUP($A141, Stat!$A$1:$C$1000, 3,0) -> 7 | N141: 1 | U141: 0 | V141: -1
A142: 176 | B142: Melody | C142: Leaps | D142: Non-permitted melodic interval: ascending | E142: :maj6 | F142: 5 | H142: 1 | L142: =VLOOKUP($A142, Stat!$A$1:$C$1000, 2,0) -> 71 | M142: =VLOOKUP($A142, Stat!$A$1:$C$1000, 3,0) -> 6 | N142: 1 | U142: 0 | V142: -1
A143: 177 | B143: Melody | C143: Leaps | D143: Non-permitted melodic interval: ascending | E143: :m7 | F143: 5 | H143: 1 | L143: =VLOOKUP($A143, Stat!$A$1:$C$1000, 2,0) -> 7 | M143: =VLOOKUP($A143, Stat!$A$1:$C$1000, 3,0) -> 4 | N143: 1 | U143: 50 | V143: -1
A144: 178 | B144: Melody | C144: Leaps | D144: Non-permitted melodic interval: ascending | E144: :maj7 | F144: 5 | H144: 1 | L144: =VLOOKUP($A144, Stat!$A$1:$C$1000, 2,0) -> 6 | M144: =VLOOKUP($A144, Stat!$A$1:$C$1000, 3,0) -> 4 | N144: 1 | U144: 100 | V144: -1
A145: 179 | B145: Melody | C145: Leaps | D145: Non-permitted melodic interval: ascending | E145: :8ve | F145: 5 | H145: 1 | L145: =VLOOKUP($A145, Stat!$A$1:$C$1000, 2,0) -> 33 | M145: =VLOOKUP($A145, Stat!$A$1:$C$1000, 3,0) -> 6 | N145: 1 | U145: 0 | V145: -1
A146: 180 | B146: Melody | C146: Leaps | D146: Non-permitted melodic interval: ascending | E146: :greater than 8ve | F146: 5 | H146: 1 | L146: =VLOOKUP($A146, Stat!$A$1:$C$1000, 2,0) -> 6 | M146: =VLOOKUP($A146, Stat!$A$1:$C$1000, 3,0) -> 6 | N146: 1 | U146: 100 | V146: 0
A147: 181 | B147: Melody | C147: Leaps | D147: Non-permitted melodic interval: descending | E147: :m6 | F147: 5 | H147: 1 | L147: =VLOOKUP($A147, Stat!$A$1:$C$1000, 2,0) -> 53 | M147: =VLOOKUP($A147, Stat!$A$1:$C$1000, 3,0) -> 8 | N147: 1 | U147: 0 | V147: -1
A148: 182 | B148: Melody | C148: Leaps | D148: Non-permitted melodic interval: descending | E148: :maj6 | F148: 5 | H148: 1 | L148: =VLOOKUP($A148, Stat!$A$1:$C$1000, 2,0) -> 36 | M148: =VLOOKUP($A148, Stat!$A$1:$C$1000, 3,0) -> 5 | N148: 1 | U148: 0 | V148: -1
A149: 183 | B149: Melody | C149: Leaps | D149: Non-permitted melodic interval: descending | E149: :m7 | F149: 5 | H149: 1 | L149: =VLOOKUP($A149, Stat!$A$1:$C$1000, 2,0) -> 6 | M149: =VLOOKUP($A149, Stat!$A$1:$C$1000, 3,0) -> 4 | N149: 1 | U149: 50 | V149: -1
A150: 184 | B150: Melody | C150: Leaps | D150: Non-permitted melodic interval: descending | E150: :maj7 | F150: 5 | H150: 1 | L150: =VLOOKUP($A150, Stat!$A$1:$C$1000, 2,0) -> 3 | M150: =VLOOKUP($A150, Stat!$A$1:$C$1000, 3,0) -> 1 | N150: 1 | U150: 100 | V150: -1
A151: 185 | B151: Melody | C151: Leaps | D151: Non-permitted melodic interval: descending | E151: :8ve | F151: 5 | H151: 1 | L151: =VLOOKUP($A151, Stat!$A$1:$C$1000, 2,0) -> 31 | M151: =VLOOKUP($A151, Stat!$A$1:$C$1000, 3,0) -> 6 | N151: 1 | U151: 0 | V151: -1
A152: 186 | B152: Melody | C152: Leaps | D152: Non-permitted melodic interval: descending | E152: :greater than 8ve | F152: 5 | H152: 1 | L152: =VLOOKUP($A152, Stat!$A$1:$C$1000, 2,0) -> 4 | M152: =VLOOKUP($A152, Stat!$A$1:$C$1000, 3,0) -> 4 | N152: 1 | U152: 100 | V152: 0
A153: 187 | B153: Harmony | C153: Dissonance | D153: Non-chord tone left by leap | E153: /leap | H153: 1 | L153: =VLOOKUP($A153, Stat!$A$1:$C$1000, 2,0) -> 195 | M153: =VLOOKUP($A153, Stat!$A$1:$C$1000, 3,0) -> 8 | R153: 276,169 | U153: 100 | V153: -1 | Z153: Leap from harmonic upbeat dissonance
A154: 188 | B154: Rhythm | C154: Repeats and ties | D154: Frequent interruption of syncopation: within 10 notes | E154: 1 | H154: 1 | L154: =VLOOKUP($A154, Stat!$A$1:$C$1000, 2,0) -> 21 | M154: =VLOOKUP($A154, Stat!$A$1:$C$1000, 3,0) -> 2 | Q154: 1 | U154: 0 | V154: -1 | W154: 4 | Y154: Except interruption of syncopation between penultimate and last measure | Z154: One syncopation is interrupted, resulting in two separate half notes
A155: 189 | B155: Rhythm | C155: Repeats and ties | D155: Frequent interruption of syncopation: within 10 notes | E155: 2 | H155: 1 | L155: =VLOOKUP($A155, Stat!$A$1:$C$1000, 2,0) -> 15 | M155: =VLOOKUP($A155, Stat!$A$1:$C$1000, 3,0) -> 0 | Q155: 1 | R155: 188 | U155: 50 | V155: -1 | W155: 4 | Y155: Except interruption of syncopation between penultimate and last measure
A156: 190 | B156: Rhythm | C156: Repeats and ties | D156: Frequent interruption of syncopation: within 10 notes | E156: >2 | H156: 1 | L156: =VLOOKUP($A156, Stat!$A$1:$C$1000, 2,0) -> 3 | M156: =VLOOKUP($A156, Stat!$A$1:$C$1000, 3,0) -> 0 | Q156: 1 | R156: 188,189 | U156: 50 | V156: -1 | W156: 4 | Y156: Except interruption of syncopation between penultimate and last measure
A157: 191 | B157: Melody | C157: Compensated leap | D157: Uncompensated leap: compensation deviation to 2nd | E157: late >3 | F157: 5 | H157: 1 | L157: =VLOOKUP($A157, Stat!$A$1:$C$1000, 2,0) -> 0 | M157: =VLOOKUP($A157, Stat!$A$1:$C$1000, 3,0) -> 0 | U157: 50 | V157: 0 | X157: E | Y157: Compensation can be deviated one 2nd interval above last leap note | Z157: Deviation after compensation note AA (1 for >5th)
A158: 192 | B158: Melody | C158: Compensated leap | D158: Uncompensated leap: compensation deviation to 3rd | E158: late >3 | F158: 5 | H158: 1 | L158: =VLOOKUP($A158, Stat!$A$1:$C$1000, 2,0) -> 0 | M158: =VLOOKUP($A158, Stat!$A$1:$C$1000, 3,0) -> 0 | U158: 50 | V158: 0 | W158: 35 | X158: E | Y158: Compensation can be deviated one 3rd interval above last leap note | Z158: Deviation after compensation note AA (2 for >5th)
A159: 193 | B159: Melody | C159: Melodic repeats | D159: Melodic climax | E159: early 50% | H159: 1 | L159: =VLOOKUP($A159, Stat!$A$1:$C$1000, 2,0) -> 192 | M159: =VLOOKUP($A159, Stat!$A$1:$C$1000, 3,0) -> 0 | Q159: 1 | U159: 0 | V159: 1 | X159: E | Z159: Only for upper voice
A160: 196 | B160: Harmony | C160: Harmony | D160: Six-four chord | E160: :suggestive | F160: 1 | H160: 1 | N160: 1 | U160: 0 | V160: -1 | Z160: 6/4 chord with repeating 5th on beat 2 or 4
A161: 197 | B161: Melody | C161: Border | D161: Leading tone is unresolved | E161: need up | F161: 12 | H161: 1 | K161: Res. | U161: 50 | V161: -1 | Z161: Leading tone has to resolve up stepwise
A162: 198 | B162: Melody | C162: Border | D162: Leading tone is unresolved | E162: need stepwise | F162: 12 | H162: 1 | K162: Res. | U162: 50 | V162: -1 | Z162: Leading tone has to resolve up or down stepwise
A163: 199 | B163: Melody | C163: Melodic minor | D163: VI# note without close VII# note | E163: within 2 notes | H163: 1 | L163: =VLOOKUP($A163, Stat!$A$1:$C$1000, 2,0) -> 65 | M163: =VLOOKUP($A163, Stat!$A$1:$C$1000, 3,0) -> 2 | U163: 0 | V163: -1 | Y163: There is no VII# note before or after VI# chord tone in close proximity
A164: 200 | B164: Melody | C164: Melodic minor | D164: bVII note | E164: 10 after VII# | F164: 8 | H164: 1 | K164: VII after VII# | L164: =VLOOKUP($A164, Stat!$A$1:$C$1000, 2,0) -> 28 | M164: =VLOOKUP($A164, Stat!$A$1:$C$1000, 3,0) -> 7 | U164: 0 | V164: -1 | Z164: AA notes after VII# note
A165: 201 | B165: Melody | C165: Melodic minor | D165: VI# should be surrounded by ascending stepwise motion | E165: /VI# | F165: 8 | H165: 1 | K165: VI# not asc. | L165: =VLOOKUP($A165, Stat!$A$1:$C$1000, 2,0) -> 9 | M165: =VLOOKUP($A165, Stat!$A$1:$C$1000, 3,0) -> 2 | U165: 0 | V165: -1 | W165: 2345 | Y165: Chord tone VI# is not surrounded by stepwise diatonic ascending movement
A166: 202 | B166: Melody | C166: Melodic minor | D166: VIIb should be surrounded by descending stepwise motion | E166: /VIIb | F166: 8 | H166: 1 | K166: VII not desc. | U166: 0 | V166: -1 | W166: 2345 | Y166: Chord tone VII natural is not surrounded by stepwise diatonic descending movement
A167: 203 | B167: Melody | C167: Melodic minor | D167: bVII note near VI# note | E167: immediate | F167: 8 | H167: 1 | K167: bVII<->VI# | U167: 50 | V167: -1 | Z167: Prohibited even if one or both notes are non-chord tones
A168: 204 | B168: Melody | C168: Uncompensated leap | D168: Precompensated last 2 leaps | E168: 3rd | F168: 5 | H168: 1 | L168: =VLOOKUP($A168, Stat!$A$1:$C$1000, 2,0) -> 78 | M168: =VLOOKUP($A168, Stat!$A$1:$C$1000, 3,0) -> 0 | U168: 0 | V168: -1 | X168: E | Y168: Leap within last XX notes in cantus/counterpoint
A169: 205 | B169: Melody | C169: Uncompensated leap | D169: Precompensated last 2 leaps | E169: 4th | F169: 5 | H169: 1 | L169: =VLOOKUP($A169, Stat!$A$1:$C$1000, 2,0) -> 4 | M169: =VLOOKUP($A169, Stat!$A$1:$C$1000, 3,0) -> 0 | U169: 0 | V169: -1 | X169: E | Y169: Leap within last XX notes in cantus/counterpoint
A170: 206 | B170: Melody | C170: Uncompensated leap | D170: Precompensated last 2 leaps | E170: 5th | F170: 5 | H170: 1 | L170: =VLOOKUP($A170, Stat!$A$1:$C$1000, 2,0) -> 2 | M170: =VLOOKUP($A170, Stat!$A$1:$C$1000, 3,0) -> 0 | U170: 0 | V170: -1 | X170: E | Y170: Leap within last XX notes in cantus/counterpoint
A171: 207 | B171: Melody | C171: Uncompensated leap | D171: Precompensated last 2 leaps | E171: >5th | F171: 5 | H171: 1 | L171: =VLOOKUP($A171, Stat!$A$1:$C$1000, 2,0) -> 8 | M171: =VLOOKUP($A171, Stat!$A$1:$C$1000, 3,0) -> 0 | U171: 0 | V171: -1 | X171: E | Y171: Leap within last XX notes in cantus/counterpoint
A172: 208 | B172: Harmony | C172: Perfect consonance | D172: Similar motion to 5th in outer voices | E172: stepw. cadence | F172: 7 | G172: 3 | K172: !fn! | L172: =VLOOKUP($A172, Stat!$A$1:$C$1000, 2,0) -> 1 | M172: =VLOOKUP($A172, Stat!$A$1:$C$1000, 3,0) -> 1 | N172: 1 | U172: 100 | V172: 0 | Z172: Direct movement to 5th with stepwize motion in higher voice to last measure
A173: 209 | B173: Harmony | C173: Perfect consonance | D173: Similar motion to 8ve in outer voices | E173: stepw. cadence | F173: 7 | G173: 3 | K173: !fn! | L173: =VLOOKUP($A173, Stat!$A$1:$C$1000, 2,0) -> 26 | M173: =VLOOKUP($A173, Stat!$A$1:$C$1000, 3,0) -> 3 | N173: 1 | U173: 0 | V173: -1 | Z173: Direct movement to 8va with stepwize motion in higher voice to last measure
A174: 210 | B174: Harmony | C174: Perfect consonance | D174: Similar motion to 5th in outer voices | E174: downbeat, not cadence | F174: 7 | G174: 3 | K174: !fn! | L174: =VLOOKUP($A174, Stat!$A$1:$C$1000, 2,0) -> 19 | M174: =VLOOKUP($A174, Stat!$A$1:$C$1000, 3,0) -> 9 | N174: 1 | U174: 100 | V174: 0 | Z174: Direct movement to 5th: not in cadence
A175: 211 | B175: Harmony | C175: Perfect consonance | D175: Similar motion to 8ve in outer voices | E175: downbeat, not cadence | F175: 7 | G175: 3 | K175: !fn! | L175: =VLOOKUP($A175, Stat!$A$1:$C$1000, 2,0) -> 8 | M175: =VLOOKUP($A175, Stat!$A$1:$C$1000, 3,0) -> 4 | N175: 1 | U175: 100 | V175: 0 | Z175: Direct movement to 8ve: not in cadence
A176: 212 | B176: Harmony | C176: Perfect consonance | D176: Similar motion to 5th in outer voices | E176: leap cadence | F176: 7 | G176: 3 | K176: !fn! | L176: =VLOOKUP($A176, Stat!$A$1:$C$1000, 2,0) -> 5 | M176: =VLOOKUP($A176, Stat!$A$1:$C$1000, 3,0) -> 1 | N176: 1 | U176: 100 | V176: 0 | Z176: Direct movement to 5th with leaping motion in higher voice to last measure
A177: 213 | B177: Harmony | C177: Perfect consonance | D177: Similar motion to 8ve in outer voices | E177: leap cadence | F177: 7 | G177: 3 | K177: !fn! | L177: =VLOOKUP($A177, Stat!$A$1:$C$1000, 2,0) -> 23 | M177: =VLOOKUP($A177, Stat!$A$1:$C$1000, 3,0) -> 8 | N177: 1 | U177: 50 | V177: 0 | Z177: Direct movement to 8va with leaping motion in higher voice to last measure
A178: 216 | B178: Harmony | C178: Suspension | D178: Suspension resolution sounds simultaneously with suspension | E178: :above sus | G178: 1 | H178: 1 | L178: =VLOOKUP($A178, Stat!$A$1:$C$1000, 2,0) -> 1 | M178: =VLOOKUP($A178, Stat!$A$1:$C$1000, 3,0) -> 1 | N178: 1 | U178: 100 | V178: -1 | Z178: Suspension resolution is above suspension
A179: 217 | B179: Harmony | C179: Suspension | D179: Suspension resolution sounds simultaneously with suspension | E179: :below sus | G179: 1 | H179: 1 | L179: =VLOOKUP($A179, Stat!$A$1:$C$1000, 2,0) -> 5 | M179: =VLOOKUP($A179, Stat!$A$1:$C$1000, 3,0) -> 4 | N179: 1 | U179: 100 | V179: -1 | Z179: Suspension resolution is below suspension. Exception: starting from 5 voices, if there is a chord tone between suspension and suspension resolution, which sound simultaneously.
A180: 218 | B180: Harmony | C180: Suspension | D180: Suspension resolution sounds simultaneously with suspension | E180: :2nd | G180: 1 | H180: 1 | L180: =VLOOKUP($A180, Stat!$A$1:$C$1000, 2,0) -> 1 | M180: =VLOOKUP($A180, Stat!$A$1:$C$1000, 3,0) -> 1 | N180: 1 | U180: 100 | V180: -1 | Z180: 2nd interval between suspension and suspension resolution. Does not include 9th interval and above
A181: 219 | B181: Harmony | C181: Suspension | D181: Wrong resolution of suspension | E181: :up | F181: 12 | H181: 1 | K181: Sus. | L181: =VLOOKUP($A181, Stat!$A$1:$C$1000, 2,0) -> 24 | M181: =VLOOKUP($A181, Stat!$A$1:$C$1000, 3,0) -> 4 | N181: 1 | U181: 100 | V181: -1 | Z181: Suspension resolution up except for leading note (LT stepwize resolution up to tonic is allowed)
A182: 220 | B182: Harmony | C182: Suspension | D182: Wrong resolution of suspension | E182: :unresolved | F182: 12 | H182: 1 | K182: Sus. | L182: =VLOOKUP($A182, Stat!$A$1:$C$1000, 2,0) -> 6 | M182: =VLOOKUP($A182, Stat!$A$1:$C$1000, 3,0) -> 2 | N182: 1 | U182: 100 | V182: -1
A183: 221 | B183: Harmony | C183: Suspension | D183: Wrong resolution of suspension | E183: :by leap | F183: 12 | H183: 1 | K183: Sus. | L183: =VLOOKUP($A183, Stat!$A$1:$C$1000, 2,0) -> 16 | M183: =VLOOKUP($A183, Stat!$A$1:$C$1000, 3,0) -> 7 | N183: 1 | U183: 100 | V183: -1 | Z183: Suspension resolution by leap
A184: 222 | B184: Harmony | C184: Perfect consonance | D184: Doubling of a tritone note | E184: /doubling | H184: 1 | U184: 50 | V184: -1 | Z184: Doubling of one of tritone notes is prohibited if both tritone notes are chord tones and both exist in voices in current measure
A185: 223 | B185: Harmony | C185: Dissonance | D185: Misuse of a non-chord tone | E185: :longer than previous chord tone | H185: 1 | L185: =VLOOKUP($A185, Stat!$A$1:$C$1000, 2,0) -> 14 | M185: =VLOOKUP($A185, Stat!$A$1:$C$1000, 3,0) -> 7 | N185: 1 | U185: 50 | V185: -1 | Z185: Dissonance is longer than previous note
A186: 226 | B186: Rhythm | C186: Rhythm | D186: Wrong usage of eighth notes | E186: 1st beat | H186: 1 | L186: =VLOOKUP($A186, Stat!$A$1:$C$1000, 2,0) -> 12 | M186: =VLOOKUP($A186, Stat!$A$1:$C$1000, 3,0) -> 7 | N186: 1 | U186: 50 | V186: -1 | Z186: 1/8 note on beat 1
A187: 227 | B187: Rhythm | C187: Rhythm | D187: Wrong usage of eighth notes | E187: 2nd beat | H187: 1 | L187: =VLOOKUP($A187, Stat!$A$1:$C$1000, 2,0) -> 47 | M187: =VLOOKUP($A187, Stat!$A$1:$C$1000, 3,0) -> 5 | N187: 1 | U187: 0 | V187: -1 | Z187: 1/8 note on beat 2
A188: 228 | B188: Rhythm | C188: Rhythm | D188: Wrong usage of eighth notes | E188: 3rd beat | H188: 1 | L188: =VLOOKUP($A188, Stat!$A$1:$C$1000, 2,0) -> 25 | M188: =VLOOKUP($A188, Stat!$A$1:$C$1000, 3,0) -> 8 | N188: 1 | U188: 50 | V188: -1 | Z188: 1/8 note on beat 3
A189: 229 | B189: Rhythm | C189: Rhythm | D189: Wrong usage of eighth notes | E189: 4th beat | H189: 1 | L189: =VLOOKUP($A189, Stat!$A$1:$C$1000, 2,0) -> 57 | M189: =VLOOKUP($A189, Stat!$A$1:$C$1000, 3,0) -> 9 | N189: 1 | U189: 0 | V189: -1 | Z189: 1/8 note on beat 4
A190: 230 | B190: Rhythm | C190: Rhythm | D190: Beginning is non-standard | E190: 1/8 note | H190: 1 | L190: =VLOOKUP($A190, Stat!$A$1:$C$1000, 2,0) -> 19 | M190: =VLOOKUP($A190, Stat!$A$1:$C$1000, 3,0) -> 3 | N190: 1 | U190: 50 | V190: -1 | Z190: 1/8 note in the first measure
A191: 231 | B191: Rhythm | C191: Rhythm | D191: Wrong usage of eighth notes | E191: isolated | H191: 1 | L191: =VLOOKUP($A191, Stat!$A$1:$C$1000, 2,0) -> 4 | M191: =VLOOKUP($A191, Stat!$A$1:$C$1000, 3,0) -> 3 | N191: 1 | U191: 50 | V191: -1 | Z191: 1/8 note without pairing 1/8
A192: 232 | B192: Rhythm | C192: Rhythm | D192: Wrong usage of eighth notes | E192: 1/8 syncope | H192: 1 | L192: =VLOOKUP($A192, Stat!$A$1:$C$1000, 2,0) -> 3 | M192: =VLOOKUP($A192, Stat!$A$1:$C$1000, 3,0) -> 3 | N192: 1 | U192: 50 | V192: -1 | Z192: 1/8 note slurred forward to next beat
A193: 233 | B193: Rhythm | C193: Rhythm | D193: Non-permitted rhythm | E193: 1/2. downbeat | H193: 1 | L193: =VLOOKUP($A193, Stat!$A$1:$C$1000, 2,0) -> 23 | M193: =VLOOKUP($A193, Stat!$A$1:$C$1000, 3,0) -> 4 | N193: 1 | U193: 0 | V193: -1 | Z193: Dotted half note on downbeat
A194: 234 | B194: Rhythm | C194: Rhythm | D194: Non-permitted rhythm | E194: 1/2. upbeat | F194: 11 | H194: 1 | K194: Rhythm | L194: =VLOOKUP($A194, Stat!$A$1:$C$1000, 2,0) -> 8 | M194: =VLOOKUP($A194, Stat!$A$1:$C$1000, 3,0) -> 8 | N194: 1 | U194: 50 | V194: -1 | Z194: Dotted half note on upbeat
A195: 235 | B195: Rhythm | C195: Rhythm | D195: Non-permitted rhythm | E195: 1/4 syncope | H195: 1 | L195: =VLOOKUP($A195, Stat!$A$1:$C$1000, 2,0) -> 22 | M195: =VLOOKUP($A195, Stat!$A$1:$C$1000, 3,0) -> 19 | N195: 1 | U195: 50 | V195: -1 | Z195: 1/4 on beat 2 or 4 is slurred to next note
A196: 236 | B196: Rhythm | C196: Rhythm | D196: Non-permitted rhythm | E196: rhythm stagnation | H196: 1 | L196: =VLOOKUP($A196, Stat!$A$1:$C$1000, 2,0) -> 38 | M196: =VLOOKUP($A196, Stat!$A$1:$C$1000, 3,0) -> 12 | N196: 1 | U196: 50 | V196: -1 | Z196: Downbeat full measure note inside counterpoint - not first or last note
A197: 239 | B197: Rhythm | C197: Rhythm | D197: Anapaest | E197: tie forward | F197: 11 | H197: 1 | K197: Anapaest | L197: =VLOOKUP($A197, Stat!$A$1:$C$1000, 2,0) -> 71 | M197: =VLOOKUP($A197, Stat!$A$1:$C$1000, 3,0) -> 18 | N197: 1 | U197: 0 | V197: -1 | Y197: 1/2 after 1/4 or 1/8 in measure | Z197: 1/2 is slurred forward when there is only one sp5 voice, before penultimate measure
A198: 240 | B198: Rhythm | C198: Rhythm | D198: Anapaest | E198: inside | F198: 11 | H198: 1 | K198: Anapaest | L198: =VLOOKUP($A198, Stat!$A$1:$C$1000, 2,0) -> 11 | M198: =VLOOKUP($A198, Stat!$A$1:$C$1000, 3,0) -> 9 | N198: 1 | R198: 239 | U198: 50 | V198: -1 | Y198: 1/2 after 1/4 or 1/8 in measure | Z198: Before penultimate measure
A199: 244 | B199: Rhythm | C199: Rhythm | D199: Wrong suspension rhythm | E199: sus wrong length | H199: 1 | L199: =VLOOKUP($A199, Stat!$A$1:$C$1000, 2,0) -> 3 | M199: =VLOOKUP($A199, Stat!$A$1:$C$1000, 3,0) -> 3 | N199: 1 | U199: 100 | V199: -1 | Y199: Suspension preparation and suspension
A200: 245 | B200: Rhythm | C200: Rhythm | D200: Too many notes in one measure | E200: 5 notes without sus. | F200: 11 | H200: 1 | K200: !srn! | L200: =VLOOKUP($A200, Stat!$A$1:$C$1000, 2,0) -> 36 | M200: =VLOOKUP($A200, Stat!$A$1:$C$1000, 3,0) -> 10 | N200: 1 | U200: 50 | V200: -1
... 217 more rows

Sheet Shapes
B1: Text | C1: ABCjs alternative
A2: 0. Just flag number | B2: yes
A3: 1. Harmony | B3: no
A4: 2. Interval | B4: no
A5: 3. Vertical brackets | B5: no | C5: no color
A6: 4. Volta repeat | B6: yes
A7: 5. Slurs | B7: no | C7: no color
A8: 6. Phrasing slurs | B8: no
A9: 7. Glissando | B9: yes (if neighboring notes)
A10: 8. Analysis brackets | B10: yes
A11: 9. Trills | B11: yes | C11: issue created
A12: 10. TextSpanner | B12: yes
A13: 11. Ottava bracket | B13: yes
A14: 12. Pedal bracket | B14: yes
A15: 13. Note name | B15: no
A16: 14. Staccato
A17: 15. Staccattissimo
A18: 16. Note color | B18: no
A19: 17. Petrucci notehead
A20: 18. Cross on a stem
A21: 19. Circle around notehead | B21: no | C21: muted note (x)

Sheet Temp
A1: Rid | B1: Class | C1: Group | D1: Rule | E1: Subrule | F1: VIZ | G1: VI | H1: V2 | I1: VT | J1: FQ | K1: CF | L1: GFP | M1: IFP | N1: DEU | O1: MEI | P1: ER | Q1: UE | R1: R | S1: Severity | T1: Flag | U1: GComment | V1: Comment | W1: Set
A2: 3 | B2: Melody | C2: Leaps | D2: Many leaps within 9 notes | E2: >8 leaps | F2: 10 | I2: !srn! | J2: =VLOOKUP($A2, Stat!$A$1:$C$501, 2,0) -> 0 | K2: =VLOOKUP($A2, Stat!$A$1:$C$501, 3,0) -> 0 | O2: 1 | P2: 311 | S2: 60 | T2: 0 | W2: 1
A3: 25 | B3: Melody | C3: Leaps | D3: Many leaps within 9 notes | E3: >30 notes | F3: 10 | I3: Many leaps | J3: =VLOOKUP($A3, Stat!$A$1:$C$501, 2,0) -> 0 | K3: =VLOOKUP($A3, Stat!$A$1:$C$501, 3,0) -> 0 | O3: 1 | P3: 312 | S3: 60 | T3: 0 | V3: Total leaps length more than X notes: 3 is third, 4 is fourth and so on | W3: 1
A4: 202 | B4: Melody | C4: Leaps | D4: Many leaps within 15 notes | E4: >12 leaps | F4: 10 | I4: !srn! | J4: =VLOOKUP($A4, Stat!$A$1:$C$501, 2,0) -> 0 | K4: =VLOOKUP($A4, Stat!$A$1:$C$501, 3,0) -> 0 | O4: 1 | P4: 313 | S4: 60 | T4: 0 | W4: 1
A5: 203 | B5: Melody | C5: Leaps | D5: Many leaps within 15 notes | E5: >42 notes | F5: 10 | I5: Many leaps | J5: =VLOOKUP($A5, Stat!$A$1:$C$501, 2,0) -> 0 | K5: =VLOOKUP($A5, Stat!$A$1:$C$501, 3,0) -> 0 | O5: 1 | P5: 314 | S5: 60 | T5: 0 | V5: Total leaps length more than X notes: 3 is third, 4 is fourth and so on | W5: 1
A6: 302 | B6: Melody | C6: Stepwise | D6: Stepwise motion | E6: >14 any direction | F6: 10 | I6: Long stepwise | J6: =VLOOKUP($A6, Stat!$A$1:$C$501, 2,0) -> 15 | K6: =VLOOKUP($A6, Stat!$A$1:$C$501, 3,0) -> 0 | S6: 60 | T6: 0 | U6: There are more than X notes going stepwize in the same direction in this counterpoint | V6: Stepwise motion more than X notes in any direction | W6: 1
A7: 303 | B7: Melody | C7: Stepwise | D7: Stepwise motion | E7: >7 one direction | F7: 10 | I7: Long stepwise | J7: =VLOOKUP($A7, Stat!$A$1:$C$501, 2,0) -> 6 | K7: =VLOOKUP($A7, Stat!$A$1:$C$501, 3,0) -> 0 | S7: 60 | T7: 0 | U7: There are more than X notes going stepwize in the same direction in this counterpoint | V7: Stepwise motion more than X notes in one direction | W7: 1
A8: 311 | B8: Melody | C8: Leaps | D8: Many leaps within 9 notes | E8: >5 leaps | F8: 10 | I8: !srn! | J8: =VLOOKUP($A8, Stat!$A$1:$C$501, 2,0) -> 0 | K8: =VLOOKUP($A8, Stat!$A$1:$C$501, 3,0) -> 0 | M8: 1 | O8: 1 | S8: 0 | T8: 0 | W8: 1
A9: 312 | B9: Melody | C9: Leaps | D9: Many leaps within 9 notes | E9: >18 notes | F9: 10 | I9: Many leaps | J9: =VLOOKUP($A9, Stat!$A$1:$C$501, 2,0) -> 0 | K9: =VLOOKUP($A9, Stat!$A$1:$C$501, 3,0) -> 0 | M9: 1 | O9: 1 | S9: 0 | T9: 0 | V9: Total leaps length more than X notes: 3 is third, 4 is fourth and so on | W9: 1
A10: 313 | B10: Melody | C10: Leaps | D10: Many leaps within 15 notes | E10: >7 leaps | F10: 10 | I10: !srn! | J10: =VLOOKUP($A10, Stat!$A$1:$C$501, 2,0) -> 0 | K10: =VLOOKUP($A10, Stat!$A$1:$C$501, 3,0) -> 0 | M10: 1 | O10: 1 | S10: 0 | T10: 0 | W10: 1
A11: 314 | B11: Melody | C11: Leaps | D11: Many leaps within 15 notes | E11: >26 notes | F11: 10 | I11: Many leaps | J11: =VLOOKUP($A11, Stat!$A$1:$C$501, 2,0) -> 0 | K11: =VLOOKUP($A11, Stat!$A$1:$C$501, 3,0) -> 0 | M11: 1 | O11: 1 | S11: 0 | T11: 0 | V11: Total leaps length more than X notes: 3 is third, 4 is fourth and so on | W11: 1
A12: 6 | B12: Melody | C12: Leaps | D12: Consecutive unidirectional 3rds | E12: without 6/8 | F12: 10 | I12: 2 x 3rds | J12: =VLOOKUP($A12, Stat!$A$1:$C$501, 2,0) -> 0 | K12: =VLOOKUP($A12, Stat!$A$1:$C$501, 3,0) -> 0 | L12: 1 | S12: 60 | T12: 0 | U12: There are two immediately adjacent 3rd leaps going in the same direction | V12: There is no 6th or 8va leap before in an opposite direction | W12: 1
A13: 27 | B13: Melody | C13: Leaps | D13: Consecutive unidirectional leaps | E13: Sum >5th | F13: 10 | I13: Leaps | J13: =VLOOKUP($A13, Stat!$A$1:$C$501, 2,0) -> 0 | K13: =VLOOKUP($A13, Stat!$A$1:$C$501, 3,0) -> 0 | S13: 100 | T13: 0 | U13: There are two immediately adjacent leaps going in the same direction | W13: 1
A14: 28 | B14: Melody | C14: Leaps | D14: Consecutive unidirectional 3rds | E14: after 6/8 | F14: 10 | I14: 2 x 3rds | J14: =VLOOKUP($A14, Stat!$A$1:$C$501, 2,0) -> 0 | K14: =VLOOKUP($A14, Stat!$A$1:$C$501, 3,0) -> 0 | L14: 1 | S14: 0 | T14: -1 | U14: There are two immediately adjacent 3rd leaps going in the same direction | V14: After 6th or 8va leap in an opposite direction | W14: 1
A15: 70 | B15: Melody | C15: Leaps | D15: Consecutive leaps: 1x3rd ignored | E15: 3 | F15: 10 | I15: Consecutive leaps | J15: =VLOOKUP($A15, Stat!$A$1:$C$501, 2,0) -> 0 | K15: =VLOOKUP($A15, Stat!$A$1:$C$501, 3,0) -> 0 | O15: 1 | S15: 60 | T15: 0 | U15: There are more than X leaps. Several Y specified 3rd leaps are allowed and not counted. Not idiomatic for voice. | W15: 1
A16: 71 | B16: Melody | C16: Leaps | D16: Consecutive leaps: 1x3rd ignored | E16: >3 | F16: 10 | I16: Consecutive leaps | J16: =VLOOKUP($A16, Stat!$A$1:$C$501, 2,0) -> 0 | K16: =VLOOKUP($A16, Stat!$A$1:$C$501, 3,0) -> 0 | O16: 1 | P16: 70 | S16: 100 | T16: 0 | U16: There are more than X leaps. Several Y specified 3rd leaps are allowed and not counted. Not idiomatic for voice. | W16: 1

Sheet viz
A1: Rule group | B1: Shape | C1: Text in staff | D1: Shegolev
A2: Compensated leap | B2: Slur | C2: -
A3: Uncompensated leap | B3: Slur | C3: -
A4: Leap melody direction change | B4: Slur | C4: -
A5: Leap back | B5: Slur | C5: -
A6: Leap size | B6: Slur | C6: -
A7: Many leaps | B7: Text spanner | C7: Many leaps | D7: Bracket
A8: 2 consecutive 3rds | B8: Text spanner | C8: 2 x 3rds | D8: Bracket
A9: Long stepwize motion | B9: Text spanner | C9: Long stepwise | D9: Bracket
A10: Multiple culminations | B10: - | C10: -
A11: Repeats | B11: Vertical bracket | C11: Repeat
A12: Many tonic notes / chords | B12: Trill | C12: Many tonics
A13: Stagnation, constrained local range, no development | B13: Trill | C13: Stagnation
A14: Letter repeat/miss | B14: Trill | C14: Repeat/miss
A15: Melodic tritone | B15: Interval text | C15: tri
A16: Skipped notes | B16: - | C16: -
A17: Voice range | B17: - | C17: -
A18: Total range | B18: - | C18: -
A19: Interval between voices | B19: Pedal bracket | C19: int >16th
A20: Harmonic mistakes | B20: Harmony text | C20: -
A21: First/last intervals | B21: Interval text | C21: -
A22: Unaltered VII before Im | B22: Bracket | C22: VII before Im | D22: Text spanner
A23: Unaltered VII 10 after VII# | B23: Bracket | C23: VII after VII# | D23: Text spanner
A24: VII near VI# | B24: Bracket | C24: VII near VI# | D24: Text spanner
A25: VI# without VII# | B25: - | C25: -
A26: Leap to VI# | B26: Slur | C26: -
A27: Altered neighbor | B27: Bracket | C27: VI# (or VII#) | D27: Text spanner
A28: Altered far neighbor | B28: Bracket | C28: VI# (or VII#) | D28: Text spanner
A29: False cross relation | B29: - | C29: -
A30: Altered harmonic interval | B30: Interval text | C30: -
A31: Duplicate LT | B31: Interval text | C31: -
A32: PCo long culmination | B32: Interval text | C32: -
A33: Adjacent Pco | B33: Glis | C33: -
A34: PCo <whole apart | B34: Glis | C34: -
A35: Virtual 4th | B35: Pedal bracket | C35: sounds 6/4
A36: Direct movement to Pco | B36: Glis | C36: -
A37: Suspension resolution (including insertion) | B37: Pedal bracket | C37: sus
A38: Harmonic dissonance | B38: Interval text | C38: -
A39: Long parallel imperfect consonances | B39: Trill | C39: parall
A40: Missing/uneven/long starting pause | B40: - | C40: -
A41: Unison downbeat | B41: Interval text | C41: -
A42: Unison near 2nd | B42: Bracket + interval text | C42: -
A43: No LT in penultimate measure | B43: - | C43: -
A44: Allowed suspension in sp2 | B44: - | C44: -
A45: Slurs in cantus, excessive slurs in sp1/2/3/5 | B45: - | C45: -
A46: Missing slurs in sp4/5 | B46: - | C46: -
A47: Voices overlap | B47: Text spanner | C47: ovl
A48: 1/2 with dot upbeat | B48: Ottava bracket | C48: 1/2. upbeat
A49: 1/4, 1/8 syncope | B49: - | C49: -
A50: Whole note inside counterpoint | B50: - | C50: -
A51: Uneven starting rhythm | B51: Ottava bracket | C51: Uneven
A52: Rhythm repeat | B52: Vertical bracket | C52: -
A53: 1/8 downbeat | B53: - | C53: -
A54: 1/8 leap | B54: Slur | C54: -
A55: 1/2 after 1/4 | B55: Ottava bracket | C55: 1/2 upbeat
A56: Note too long | B56: - | C56: -
A57: Last note is not whole | B57: - | C57: -
A58: Wrong suspension rhythm (1/4 or 1/2 with dot) | B58: - | C58: -
A59: Many notes in measure | B59: Ottava bracket | C59: Many notes

Sheet viz2
A3: Названия строк | B3: Количество по полю Rule group
A4: - | B4: 13
A5: Ottava bracket | B5: 7
A6: Slur | B6: 7
A7: Interval text | B7: 6
A8: Bracket | B8: 6
A9: Pedal bracket | B9: 4
A10: Trill | B10: 3
A11: Glis | B11: 3
A12: Text spanner | B12: 3
A13: Vertical bracket | B13: 2
A14: Bracket + interval text | B14: 1
A15: Volta | B15: 1
A16: Harmony text | B16: 1
A17: Общий итог | B17: 57

Sheet Missing
A1: Rid
A2: 4
A3: 5
A4: 6
A5: 7
A6: 9
A7: 11
A8: 13
A9: 14
A10: 32
A11: 33
A12: 34
A13: 35
A14: 37
A15: 38
A16: 40
A17: 46
A18: 49
A19: 50
A20: 51
A21: 52
A22: 75
A23: 80
A24: 81
A25: 82
A26: 86
A27: 87
A28: 96
A29: 98
A30: 261
A31: 262
A32: 263
A33: 264
A34: 265
A35: 266
A36: 268
A37: 269
A38: 270
A39: 271
A40: 272
A41: 273
A42: 278
A43: 279
A44: 280
A45: 281
A46: 283
A47: 284
A48: 285
A49: 288
A50: 289
A51: 290
A52: 297
A53: 298
A54: 299
A55: 300
A56: 306
A57: 307
A58: 315
A59: 317
A60: 318
A61: 319
A62: 320
A63: 322
A64: 323
A65: 327
A66: 328
A67: 329
A68: 330
A69: 332
A70: 333
A71: 334
A72: 336
A73: 337
A74: 338
A75: 339
A76: 340
A77: 347
A78: 351
A79: 352
A80: 353
A81: 354
A82: 355
A83: 356
A84: 357
A85: 358
A86: 359
A87: 362
A88: 363
A89: 364
A90: 367
A91: 370
A92: 373
A93: 374
A94: 380
A95: 381
A96: 382
A97: 384
A98: 389
A99: 390
A100: 395
A101: 396
A102: 397
A103: 409
A104: 410
A105: 421
A106: 422
A107: 423
A108: 424
A109: 425
A110: 426
A111: 438
A112: 439
A113: 440
A114: 441
A115: 442
A116: 443
A117: 444
A118: 445
A119: 446
A120: 447
A121: 448
A122: 449
A123: 450
A124: 451
A125: 452
A126: 453
A127: 454
A128: 455
A129: 456
A130: 457
A131: 459
A132: 480
A133: 483
A134: 486
A135: 487
A136: 489
A137: 528
A138: 529
A139: 539
A140: 540
A141: 552
A142: 553
A143: 554
A144: 556
A145: 560

Sheet Colors

Sheet Stat
A1: Rule ID | B1: Freq | C1: Confirmed
A2: 0 | B2: 0 | C2: 0
A3: 1 | B3: 15 | C3: 1
A4: 2 | B4: 8 | C4: 2
A5: 3 | B5: 0 | C5: 0
A6: 4 | B6: 0 | C6: 0
A7: 5 | B7: 0 | C7: 0
A8: 6 | B8: 0 | C8: 0
A9: 7 | B9: 2 | C9: 1
A10: 8 | B10: 491 | C10: 1
A11: 9 | B11: 0 | C11: 0
A12: 10 | B12: 39 | C12: 1
A13: 11 | B13: 29 | C13: 1
A14: 12 | B14: 108 | C14: 39
A15: 13 | B15: 55 | C15: 10
A16: 14 | B16: 185 | C16: 26
A17: 15 | B17: 36 | C17: 2
A18: 16 | B18: 20 | C18: 1
A19: 17 | B19: 6 | C19: 0
A20: 18 | B20: 4 | C20: 0
A21: 19 | B21: 33 | C21: 21
A22: 20 | B22: 5 | C22: 0
A23: 21 | B23: 198 | C23: 1
A24: 22 | B24: 24 | C24: 12
A25: 23 | B25: 19 | C25: 1
A26: 24 | B26: 54 | C26: 9
A27: 25 | B27: 0 | C27: 0
A28: 26 | B28: 30 | C28: 1
A29: 27 | B29: 0 | C29: 0
A30: 28 | B30: 0 | C30: 0
A31: 29 | B31: 330 | C31: 0
A32: 30 | B32: 0 | C32: 0
A33: 31 | B33: 29 | C33: 3
A34: 32 | B34: 17 | C34: 5
A35: 33 | B35: 55 | C35: 5
A36: 34 | B36: 40 | C36: 5
A37: 35 | B37: 177 | C37: 0
A38: 36 | B38: 46 | C38: 1
A39: 37 | B39: 28 | C39: 1
A40: 38 | B40: 96 | C40: 2
A41: 39 | B41: 21 | C41: 0
A42: 40 | B42: 54 | C42: 2
A43: 41 | B43: 15 | C43: 12
A44: 42 | B44: 199 | C44: 0
A45: 43 | B45: 88 | C45: 0
A46: 44 | B46: 76 | C46: 0
A47: 45 | B47: 3 | C47: 0
A48: 46 | B48: 70 | C48: 0
A49: 47 | B49: 108 | C49: 5
A50: 48 | B50: 1 | C50: 1
A51: 49 | B51: 5 | C51: 1
A52: 50 | B52: 17 | C52: 1
A53: 51 | B53: 17 | C53: 2
A54: 52 | B54: 12 | C54: 1
A55: 53 | B55: 44 | C55: 0
A56: 54 | B56: 28 | C56: 0
A57: 55 | B57: 41 | C57: 0
A58: 56 | B58: 32 | C58: 0
A59: 57 | B59: 535 | C59: 1
A60: 58 | B60: 175 | C60: 33
A61: 59 | B61: 170 | C61: 0
A62: 60 | B62: 44 | C62: 6
A63: 61 | B63: 38 | C63: 5
A64: 62 | B64: 23 | C64: 10
A65: 63 | B65: 18 | C65: 5
A66: 64 | B66: 6 | C66: 2
A67: 65 | B67: 7 | C67: 2
A68: 66 | B68: 2 | C68: 2
A69: 67 | B69: 174 | C69: 45
A70: 68 | B70: 20 | C70: 10
A71: 69 | B71: 69 | C71: 24
A72: 70 | B72: 0 | C72: 0
A73: 71 | B73: 0 | C73: 0
A74: 72 | B74: 25 | C74: 0
A75: 73 | B75: 23 | C75: 0
A76: 74 | B76: 31 | C76: 4
A77: 75 | B77: 32 | C77: 19
A78: 76 | B78: 51 | C78: 1
A79: 77 | B79: 612 | C79: 0
A80: 78 | B80: 71 | C80: 1
A81: 79 | B81: 94 | C81: 0
A82: 80 | B82: 338 | C82: 2
A83: 81 | B83: 66 | C83: 2
A84: 82 | B84: 48 | C84: 11
A85: 83 | B85: 219 | C85: 21
A86: 84 | B86: 32 | C86: 5
A87: 85 | B87: 0 | C87: 0
A88: 86 | B88: 167 | C88: 4
A89: 87 | B89: 48 | C89: 1
A90: 88 | B90: 47 | C90: 12
A91: 89 | B91: 27 | C91: 0
A92: 90 | B92: 5 | C92: 1
A93: 91 | B93: 6 | C93: 2
A94: 92 | B94: 103 | C94: 1
A95: 93 | B95: 36 | C95: 0
A96: 94 | B96: 6 | C96: 0
A97: 95 | B97: 22 | C97: 0
A98: 96 | B98: 4 | C98: 0
A99: 97 | B99: 3 | C99: 0
A100: 98 | B100: 0 | C100: 0
A101: 99 | B101: 28 | C101: 1
A102: 100 | B102: 0 | C102: 0
A103: 101 | B103: 94 | C103: 0
A104: 102 | B104: 69 | C104: 0
A105: 103 | B105: 39 | C105: 0
A106: 104 | B106: 0 | C106: 0
A107: 105 | B107: 0 | C107: 0
A108: 106 | B108: 0 | C108: 0
A109: 107 | B109: 0 | C109: 0
A110: 108 | B110: 73 | C110: 0
A111: 109 | B111: 11 | C111: 5
A112: 110 | B112: 9 | C112: 3
A113: 111 | B113: 2 | C113: 1
A114: 112 | B114: 151 | C114: 0
A115: 113 | B115: 19 | C115: 0
A116: 114 | B116: 8 | C116: 0
A117: 115 | B117: 24 | C117: 0
A118: 116 | B118: 43 | C118: 0
A119: 117 | B119: 45 | C119: 0
A120: 118 | B120: 25 | C120: 0
A121: 119 | B121: 20 | C121: 0
A122: 120 | B122: 84 | C122: 0
A123: 121 | B123: 58 | C123: 0
A124: 122 | B124: 23 | C124: 0
A125: 123 | B125: 0 | C125: 0
A126: 124 | B126: 36 | C126: 1
A127: 125 | B127: 39 | C127: 1
A128: 126 | B128: 60 | C128: 1
A129: 127 | B129: 88 | C129: 1
A130: 128 | B130: 126 | C130: 0
A131: 129 | B131: 55 | C131: 9
A132: 130 | B132: 38 | C132: 5
A133: 131 | B133: 27 | C133: 12
A134: 132 | B134: 185 | C134: 0
A135: 133 | B135: 70 | C135: 7
A136: 134 | B136: 36 | C136: 6
A137: 135 | B137: 13 | C137: 4
A138: 136 | B138: 0 | C138: 0
A139: 137 | B139: 0 | C139: 0
A140: 138 | B140: 0 | C140: 0
A141: 139 | B141: 17 | C141: 11
A142: 140 | B142: 69 | C142: 1
A143: 141 | B143: 29 | C143: 1
A144: 142 | B144: 13 | C144: 3
A145: 143 | B145: 6 | C145: 4
A146: 144 | B146: 0 | C146: 0
A147: 145 | B147: 92 | C147: 0
A148: 146 | B148: 127 | C148: 0
A149: 147 | B149: 40 | C149: 0
A150: 148 | B150: 20 | C150: 1
A151: 149 | B151: 5 | C151: 2
A152: 150 | B152: 4 | C152: 2
A153: 151 | B153: 0 | C153: 0
A154: 152 | B154: 1 | C154: 1
A155: 153 | B155: 3 | C155: 2
A156: 154 | B156: 15 | C156: 3
A157: 155 | B157: 4 | C157: 1
A158: 156 | B158: 7 | C158: 3
A159: 157 | B159: 3 | C159: 1
A160: 158 | B160: 7 | C160: 3
A161: 159 | B161: 3 | C161: 1
A162: 160 | B162: 16 | C162: 3
A163: 161 | B163: 27 | C163: 4
A164: 162 | B164: 9 | C164: 1
A165: 163 | B165: 20 | C165: 2
A166: 164 | B166: 25 | C166: 4
A167: 165 | B167: 30 | C167: 6
A168: 166 | B168: 41 | C168: 3
A169: 167 | B169: 37 | C169: 3
A170: 168 | B170: 80 | C170: 5
A171: 169 | B171: 904 | C171: 3
A172: 170 | B172: 6 | C172: 1
A173: 171 | B173: 8 | C173: 2
A174: 172 | B174: 0 | C174: 0
A175: 173 | B175: 0 | C175: 0
A176: 174 | B176: 0 | C176: 0
A177: 175 | B177: 64 | C177: 7
A178: 176 | B178: 71 | C178: 6
A179: 177 | B179: 7 | C179: 4
A180: 178 | B180: 6 | C180: 4
A181: 179 | B181: 33 | C181: 6
A182: 180 | B182: 6 | C182: 6
A183: 181 | B183: 53 | C183: 8
A184: 182 | B184: 36 | C184: 5
A185: 183 | B185: 6 | C185: 4
A186: 184 | B186: 3 | C186: 1
A187: 185 | B187: 31 | C187: 6
A188: 186 | B188: 4 | C188: 4
A189: 187 | B189: 195 | C189: 8
A190: 188 | B190: 21 | C190: 2
A191: 189 | B191: 15 | C191: 0
A192: 190 | B192: 3 | C192: 0
A193: 191 | B193: 0 | C193: 0
A194: 192 | B194: 0 | C194: 0
A195: 193 | B195: 192 | C195: 0
A196: 194 | B196: 0 | C196: 0
A197: 195 | B197: 0 | C197: 0
A198: 196 | B198: 7 | C198: 0
A199: 197 | B199: 4 | C199: 3
A200: 198 | B200: 0 | C200: 0
... 801 more rows

Sheet vp
A1: E | B1: B | C1: N
A2: H+B | B2: nH+B | C2: nB
A3: Extreme | B3: With bass | C3: Non-bass
A4: 1 | B4: 1 | C4: 1
A5: 2 | B5: 2 | C5: 2
A6: 3 | B6: 3 | C6: 3
A7: 4 | B7: 4 | C7: 4
A8: 5 | B8: 5 | C8: 5
A9: 6 | B9: 6 | C9: 6
A10: 7 | B10: 7 | C10: 7
A11: 8 | B11: 8 | C11: 8

Sheet Cursed
A1: Cursed augmented chord
A2: Damned augmented chord
A3: Goddamn augmented chord
A4: Fucking augmented chord
A5: WTF! Augmented chord
A6: Stupid augmented chord

Sheet Dis
A1: Диссонансы за исключениям задержаний и PDD | B1: Секунда / септима / нона | F1: Кварта / тритон с басом | J1: Кварта / тритон без баса
B2: Сильн | C2: Прям | D2: Прот | E2: Косв | F2: Сильн | G2: Прям | H2: Прот | I2: Косв | J2: Сильн | K2: Прям | L2: Прот | M2: Косв
A3: Между двумя аккордовыми звуками, вступление скачками
A4: Между двумя аккордовыми звуками, вступление скачком
A5: Между двумя аккордовыми звуками, вступление поступенно
A6: Между аккордовым и неаккордовым звуками, вступление скачками
A7: Между аккордовым и неаккордовым звуками, вступление скачком к аккордовому
A8: Между аккордовым и неаккордовым звуками, вступление скачком к неаккордовому
A9: Между аккордовым и неаккордовым звуками, вступление поступенно
A10: Между двумя неаккордовыми звуками, вступление скачками
A11: Между двумя неаккордовыми звуками, вступление скачком
A12: Между двумя неаккордовыми звуками, вступление поступенно

Sheet Ivls
A1: LN1 | B1: LN2 | C1: LN3 | D1: 9 | E1: 11 | F1: 0 | G1: 2 | H1: 4 | I1: 5 | J1: 6 | K1: 7 | L1: 8
A2: Lower note | D2: Upper melodic minor note
D3: I | E3: II | F3: III | G3: IV | H3: V | I3: VI | J3: VI# | K3: VII | L3: VII#
D4: A | E4: B | F4: C | G4: D | H4: E | I4: F | J4: F# | K4: G | L4: G#
A5: 9 | B5: I | C5: A | D5: 1|8 | E5: M2|M9 | F5: m3 | G5: 4 | H5: 5 | I5: m6 | J5: M6 | K5: m7 | L5: M7
A6: 11 | B6: II | C6: B | D6: m7 | E6: 1|8 | F6: m2|m9 | G6: m3 | H6: 4 | I6: dim5 | J6: 5 | K6: m6 | L6: M6
A7: 0 | B7: III | C7: C | D7: M6 | E7: M7 | F7: 1|8 | G7: M2|M9 | H7: m3 | I7: 4 | J7: aug4 | K7: 5 | L7: aug5
A8: 2 | B8: IV | C8: D | D8: 5 | E8: M6 | F8: m7 | G8: 1|8 | H8: M2|M9 | I8: m3 | J8: M3 | K8: 4 | L8: aug4
A9: 4 | B9: V | C9: E | D9: 4 | E9: 5 | F9: m6 | G9: m7 | H9: 1|8 | I9: m2|m9 | J9: M2|M9 | K9: m3 | L9: M3
A10: 5 | B10: VI | C10: F | D10: M3 | E10: aug4 | F10: 5 | G10: M6 | H10: M7 | I10: 1|8 | J10: aug1|aug8 | K10: M2|M9 | L10: aug2|aug9
A11: 6 | B11: VI# | C11: F# | D11: m3 | E11: 4 | F11: dim5 | G11: m6 | H11: m7 | I11: M7 | J11: 1|8 | K11: m2|m9 | L11: M2|M9
A12: 7 | B12: VII | C12: G | D12: M2|M9 | E12: M3 | F12: 4 | G12: 5 | H12: M6 | I12: m7 | J12: M7 | K12: 1|8 | L12: aug1|aug8
A13: 8 | B13: VII# | C13: G# | D13: m2|m9 | E13: m3 | F13: dim4 | G13: dim5 | H13: m6 | I13: dim7 | J13: m7 | K13: dim8 | L13: 1|8
